{"text_format":"1","workbook":"xlsx","n_sheets":10,"sheets":["Instructions and FAQs","APPLICATION PHASE","CALCS","PLACED IN SERVICE PHASE","CALCS2","Min. Construction+CAS+CALGreen","ZNE Calculation","Project Submission Requirements","Rehab Verification Quals Final","NC Verification Quals"],"not_rendered":{"charts":0,"images":18,"macros":1,"external_links":0,"defined_names":14,"comments":2,"pivot_tables":0},"unopened":[],"bounds":{"document_bytes":16777216,"sheet_cells":100000,"rows_first":2000,"rows_last":500,"rows_between":2000,"halvings":0,"cell_chars":16384,"cell_head_chars":4096},"cells_cut":0,"cells_raw":0,"read":"whole","date_system":"1900"}

{"sheet":"Instructions and FAQs","index":0,"n_rows":622,"n_cols":3,"rows_kept":622,"cut":false,"hidden":false,"merged":[[457,1,457,6],[459,1,459,6],[468,1,468,6],[173,1,173,6],[175,1,175,6],[192,1,192,6],[194,1,194,6],[247,1,247,6],[380,1,380,6],[382,1,382,6],[423,1,423,6],[437,1,437,6],[438,1,438,6],[439,1,439,6],[428,1,428,6],[429,1,429,6],[430,1,430,6],[431,1,431,6],[432,1,432,6],[433,1,433,6],[434,1,434,6],[435,1,435,6],[436,1,436,6],[424,1,424,6],[118,1,118,6],[169,1,169,6],[164,1,164,6],[159,1,159,6],[158,1,158,6],[156,1,156,6],[155,1,155,6],[154,1,154,6],[153,1,153,6],[152,1,152,6],[131,1,131,6],[134,1,134,6],[135,1,135,6],[137,1,137,6],[138,1,138,6],[133,1,133,6],[122,1,122,6],[123,1,123,6],[124,1,124,6],[129,1,129,6],[130,1,130,6],[125,1,125,6],[165,1,165,6],[481,1,481,6],[482,1,482,6],[483,1,483,6],[474,1,474,6],[613,1,613,6],[568,1,568,6],[569,1,569,6],[570,1,570,6],[571,1,571,6],[572,1,572,6],[573,1,573,6],[574,1,574,6],[606,1,606,6],[611,1,611,6],[612,1,612,6],[602,1,602,6],[603,1,603,6],[604,1,604,6],[605,1,605,6],[607,1,607,6],[609,1,609,6],[565,1,565,6],[566,1,566,6],[567,1,567,6],[558,1,558,6],[559,1,559,6],[560,1,560,6],[555,1,555,6],[556,1,556,6],[557,1,557,6],[512,1,512,6],[513,1,513,6],[514,1,514,6],[515,1,515,6],[516,1,516,6],[517,1,517,6],[547,1,547,6],[548,1,548,6],[549,1,549,6],[550,1,550,6],[553,1,553,6],[521,1,521,6],[520,1,520,6],[509,1,509,6],[510,1,510,6],[511,1,511,6],[503,1,503,6],[504,1,504,6],[505,1,505,6],[506,1,506,6],[507,1,507,6],[508,1,508,6],[497,1,497,6],[498,1,498,6],[499,1,499,6],[500,1,500,6],[501,1,501,6],[502,1,502,6],[472,1,472,6],[473,1,473,6],[496,1,496,6],[475,1,475,6],[492,1,492,6],[493,1,493,6],[494,1,494,6],[495,1,495,6],[484,1,484,6],[485,1,485,6],[486,1,486,6],[487,1,487,6],[488,1,488,6],[489,1,489,6],[490,1,490,6],[476,1,476,6],[477,1,477,6],[478,1,478,6],[425,1,425,6],[426,1,426,6],[391,1,391,6],[395,1,395,6],[396,1,396,6],[397,1,397,6],[398,1,398,6],[399,1,399,6],[400,1,400,6],[401,1,401,6],[405,1,405,6],[406,1,406,6],[416,1,416,6],[417,1,417,6],[421,1,421,6],[420,1,420,6],[414,1,414,6],[415,1,415,6],[413,1,413,6],[412,1,412,6],[403,1,403,6],[404,1,404,6],[402,1,402,6],[346,1,346,6],[347,1,347,6],[349,1,349,6],[333,1,333,6],[334,1,334,6],[335,1,335,6],[336,1,336,6],[337,1,337,6],[338,1,338,6],[339,1,339,6],[340,1,340,6],[342,1,342,6],[321,1,321,6],[322,1,322,6],[323,1,323,6],[324,1,324,6],[328,1,328,6],[332,1,332,6],[343,1,343,6],[344,1,344,6],[345,1,345,6],[312,1,312,6],[313,1,313,6],[314,1,314,6],[315,1,315,6],[316,1,316,6],[317,1,317,6],[318,1,318,6],[319,1,319,6],[320,1,320,6],[306,1,306,6],[303,1,303,6],[304,1,304,6],[309,1,309,6],[310,1,310,6],[311,1,311,6],[250,1,250,6],[299,1,299,6],[268,1,268,6],[269,1,269,6],[297,1,297,6],[266,1,266,6],[267,1,267,6],[298,1,298,6],[260,1,260,6],[261,1,261,6],[262,1,262,6],[263,1,263,6],[264,1,264,6],[265,1,265,6],[305,1,305,6],[307,1,307,6],[53,1,53,6],[54,1,54,6],[188,1,188,6],[191,1,191,6],[255,1,255,6],[189,1,189,6],[302,1,302,6],[167,1,167,6],[168,1,168,6],[157,1,157,6],[55,1,55,6],[56,1,56,6],[57,1,57,6],[62,1,62,6],[63,1,63,6],[64,1,64,6],[65,1,65,6],[66,1,66,6],[195,1,195,6],[117,1,117,6],[301,1,301,6],[208,1,208,6],[300,1,300,6],[246,1,246,6],[50,1,50,6],[52,1,52,6],[2,1,2,6],[35,1,35,6],[37,1,37,6],[38,1,38,6],[40,1,40,6],[43,1,43,6],[41,1,41,6],[42,1,42,6],[46,1,46,6],[44,1,44,6],[45,1,45,6],[3,1,3,6],[4,1,4,6],[49,1,49,6],[5,1,5,6],[6,1,6,6],[8,1,8,6],[7,1,7,6],[51,1,51,6],[9,1,9,6],[17,1,17,6],[19,1,19,6],[200,1,200,6],[90,1,90,6],[79,1,79,6],[91,1,91,6],[67,1,67,6],[93,1,93,6],[72,1,72,6],[73,1,73,6],[75,1,75,6],[74,1,74,6],[76,1,76,6],[77,1,77,6],[78,1,78,6],[88,1,88,6],[89,1,89,6],[68,1,68,6],[69,1,69,6],[70,1,70,6],[92,1,92,6],[71,1,71,6],[81,1,81,6],[82,1,82,6],[83,1,83,6],[99,1,99,6],[206,1,206,6],[204,1,204,6],[1,1,1,6],[215,1,215,6],[216,1,216,6],[271,1,271,6],[272,1,272,6],[21,1,21,6],[33,1,33,6],[94,1,94,6],[95,1,95,6],[96,1,96,6],[114,1,114,6],[132,1,132,6],[101,1,101,6],[115,1,115,6],[136,1,136,6],[243,1,243,6],[245,1,245,6],[196,1,196,6],[197,1,197,6],[198,1,198,6],[199,1,199,6],[244,1,244,6],[371,1,371,6],[201,1,201,6],[373,1,373,6],[374,1,374,6],[369,1,369,6],[166,1,166,6],[210,1,210,6],[209,1,209,6],[126,1,126,6],[127,1,127,6],[128,1,128,6],[308,1,308,6],[202,1,202,6],[203,1,203,6],[241,1,241,6],[242,1,242,6],[211,1,211,6],[212,1,212,6],[213,1,213,6],[253,1,253,6],[254,1,254,6],[251,1,251,6],[252,1,252,6],[205,1,205,6],[372,1,372,6],[207,1,207,6],[375,1,375,6],[376,1,376,6],[377,1,377,6],[615,1,615,6],[348,1,348,6],[350,1,350,6],[353,1,353,6],[355,1,355,6],[359,1,359,6],[361,1,361,6],[408,1,408,6],[418,1,418,6],[551,1,551,6],[352,1,352,6],[357,1,357,6],[358,1,358,6],[365,1,365,6],[367,1,367,6],[368,1,368,6],[576,1,576,6],[577,1,577,6],[370,1,370,6]]}
[]
[null,"WORKSHEET INSTRUCTIONS"]
[null,"v 1.3"]
[null,"General Instructions:"]
[null,"* In order for worksheet to work, you must enable macros.*"]
[]
[null,"Printing Instructions: In order to print these worksheets, select Print.  Under the scaling section, please select \"Fit all Columns on One Page\""]
[]
[null,"For  assistance with this worksheet, please contact the project's regional analyst at (916) 654-6340  http://www.treasurer.ca.gov/ctcac/assignments.pdf "]
[null,"GENERAL HELP AND DOCUMENTS"]
[null,"1. TCAC regulations - available on the TCAC website at http://www.treasurer.ca.gov/ctcac/programreg/regulations.asp"]
[null,"2. TCAC Existing Multifamily Assessment Report Template (for rehab projects)- http://www.treasurer.ca.gov/ctcac/2015/sustainable.asp"]
[null,"3. TCAC Existing Multifamily Assessment Protocols Document (for rehab projects) - http://www.treasurer.ca.gov/ctcac/2015/sustainable.asp"]
[null,"4.  TCAC Combustion Appliance Safety Worksheet (for rehab projects) - http://www.treasurer.ca.gov/ctcac/2015/sustainable.asp"]
[]
[null,"FAQS"]
[null,"Q: In what circumstances is this workbook NOT required?"]
[null,"A: Beginning in 2014, TCAC Regulations state that this workbook is not required when an applicant is committing to no more than TCAC minimum construction standards for new construction or rehabilitation energy efficiency AND the project will be designed in accordance with the LEED or GreenPoint Rated multifamily guidelines.   TCAC has issued a regulation change that clarifies this available at http://www.treasurer.ca.gov/ctcac/programreg/2014/20140428/changes.pdf. For competitive and non-competitive projects pursuing LEED or GreenPoint Rated certification and not taking credit for any additional percentage improvement over Title 24 (for new construction projects) or existing conditions (for rehabilitation projects), documentation will still be required for the project showing that it meets the minimum construction standards  for energy efficiency as outlined in Regulations section 10325(f)(7)(A).  The minimum documentation required for these projects shall be:\n- New Construction Low-Rise: CF1-R and .Bld or .mp8 file showing a minimum thirty percent (30%) better than the 2008 Energy Efficiency  Standards (California Code of Regulations, Part 6 of Title 24) including heating, cooling, fan energy, and water heating but not the following end uses: lighting, plug load, appliances, or process energy OR CUAC showing a minimum 20% towards ZNE.\n- New Construction High-Rise: PERF 1C and .Bld file showing a minimum thirty percent (30%) better than the 2008 Energy Efficiency Standards (California Code of Regulations, Part 6 of Title 24) including heating, cooling, fan energy, pumps, and water heating but not the following end uses: lighting, plug load, appliances, and process energy OR CUAC showing a minimum 20% towards ZNE.\n- Rehabilitation Projects (low and high-rise): ECON-2(s) and .bld file(s) showing a minimum of 10% post-rehabilitation energy efficiency improvement over existing  conditions achieved."]
[null,"Q: What is necessary if my project is a non-competitive (4%) project?"]
[null,"A: All projects, including non-competitive projects, must meet the minimum construction standards for energy efficiency, as outlined in Section 10325(f)(7) of the TCAC regulations.  These requirements are outlined in tab 4 (Minimum Construction + CALGreen) of this workbook and must be verified by a HERS Whole House Rater or a LEED for Homes Green Rater.  These include energy efficiency and CALGreen compliance.  Non-competitive applicants (new construction) are required to be thirty percent (30%) better than the 2008 Title 24 standards.   All rehabilitated buildings shall have improved energy efficiency above the modeled energy consumption of the building(s) based on existing conditions, with at least a 10% post-rehabilitation improvement over existing conditions energy efficiency achieved for each building.  Non-competitive applications must submit this workbook and should follow instructions and documentation requirements applicable to percent better than standards (new construction) or improvement over existing (rehabilitation)."]
[null,"Q: Should common areas or non-residential spaces be included in the energy model?"]
[null,"A: Common area spaces that directly serve the tenants (ie: hallways, common area community spaces) should be included in the energy model.  Any non-residential spaces not used by the tenants should be omitted from the model.  Buildings with no residential space (ie: separate common area buildings) should be omitted from the energy model."]
[]
[null,"Q: Do the energy modeler and verifier have to be the same person?"]
[null,"A: No, the energy modeler and verifier may be separate people, so long as both people meet the qualifications listed in this workbook."]
[]
[null,"Q: Does the energy audit component of a Green Physical Needs Assessment (GPNA) meet the requirement for a \"TCAC Existing Multifamily Assessment Report\" for rehabilitation projects?"]
[null,"A: Yes, provided the GPNA and associated energy model meet all the requirements of the TCAC regulations and this workbook."]
[]
[null,"Q: What are the requirements for the energy assessment and report for rehabilitation projects?"]
[null,"A: In 2014, TCAC created template documents to define the requirements for each of these items.  See the above section for links."]
[]
[null,"Q: What are the modeling requirements if I have more than 1 building in my project?"]
[null,"A: The TCAC regulations specify that each individual building must meet the energy criteria specified in the minimum construction standards section of the regulations (10325(f)(7)(A)).  Once these minimums have been met, points shall be awarded based upon the average improvement over Title 24 (for new construction) or over existing conditions (for rehab) of all buildings on the property."]
[]
[null,"TAB 1: APPLICATION PHASE"]
[]
[null,"This tab is intended to be used during the TCAC application phase for projects applying for points under the Sustainable Building Methods Section (Section 10325(c)6)).  This tab will calculate  "]
[null,"the number of application points for your projects based off of user-inputs."]
[]
[null,"General Information:"]
[null,"Building Name: Please input the name of the building, as shown on the TCAC application documents."]
[null,"Building Address: Please input the address of the building, as shown on the TCAC application documents."]
[null,"Modeler Name: Please input the energy modeler name."]
[null,"Modeler Phone # and E-mail: Please input the contact information for the energy modeler."]
[null,"Application Date: Please input the application date.  Note that this cell defaults to today's date unless changed by the applicant."]
[null,"Modeler Company: Please input the company that the energy modeler is employed by."]
[]
[null,"Options for Modeler Certifications:"]
[null,"Modeler 2013 CEA ID #: Note that it is required that the energy modeler be CEA certified (Res certification for low-rise buildings and Non-Res for high-rise), and"]
[null," For rehab projects, Modeler HERS Whole House (HERS II) ID #:  It is required that the energy modeler be HERS II certified for all rehab projects"]
[]
[null,"Project Type:"]
[null,"Select project type.  Based on the selection here, the applicant will earn points under either TCAC Regulation Sections 10325(c)(6)(A), 10325(c)(6)(B), 10325(c)(6)(C) for New Construction or "]
[null,"Adaptive Reuse Projects; or Sections 10325(c)(6)(D), 10325(c)(6)(E), 10325(c)(6)(F) for Rehabilitation Projects."]
[]
[null,"New Construction Low-Rise (3 or fewer habitable stories):"]
[null,"For new construction low-rise projects, the energy modeler has three options for scoring: % Better than Title 24 (10325(c)(6)(B)(i)), Green Building Certification ((10325(c)(6)(A)  and 10325(c)(6)(C)) "]
[null,"and Percent Towards ZNE ((10325(c)(6)(B)(ii)). "]
[]
[null,"\"Percent Better than Title 24 Standard\" from CF-1R (10325(c)(6)(B)(i)): "]
[null,"For New Construction Low-Rise projects using this scoring option, the energy modeler will reference the \"Percent Better than Standard\" shown on the CF-1R generated in EnergyPro (Res T-24), "]
[null,"CBECC-Res, or MicroPas.  This number will be used to directly calculate the points under TCAC Section 10325(c)(6)(B)(i)."]
[]
[]
[]
[]
[]
[]
[]
[]
[]
[]
[]
[]
[]
[null,"Green Building Rating Program associated with project ((10325(c)(6)(A)  and 10325(c)(6)(C)) : Applicants that commit to developing projects in accordance to any of the identified programs will get"]
[null," 5 points, per CTCAC regulation section 10325(c)(6)(A).  Additional points are awarded for higher certification levels per TCAC Section 10325(c)(6)(C). "]
[]
[]
[]
[]
[]
[]
[]
[]
[]
[]
[]
[]
[]
[]
[]
[]
[]
[]
[]
[null,"\"Percent Towards Zero Net Energy (ZNE)\" using the California Utility Allowance Calculator (10325(c)(6)(B)(ii)): "]
[null,"For New Construction Low-Rise projects using this scoring option, the energy modeler will utilize the California Utility Allowance Calculator (CUAC) in order to calculator the solar offset of a "]
[null,"project's tenant energy loads.  Gas use is to be converted to kWh for percentage ZNE offset calculations, assuming 1 Therm = 29.3 kWh, and 100,100 British Thermal Units (BTUs) = 29.3 kWh. "]
[null,"Residential energy loads modeled by the CUAC shall include all energy used by tenants, both gas and electric, regardless of whether the energy load is billed to the owner or the tenants.   This"]
[null,"number will be used to directly calculate the points under TCAC Section 10325(c)(6)(B)(ii)."]
[]
[]
[]
[]
[]
[]
[]
[]
[]
[]
[]
[]
[null,"Required Documentation for New Construction Low-Rise Projects: CF1-R (for % better than Title 24 Standard Points) and/or CUAC (for % towards ZNE Points) and/or Green Building Rating Program "]
[null,"Initial Checklist (for Green Building Certification Points), .Bld or .mp8 or .ribd file, Summary of Proposed Measures (Application Phase tab of this workbook)."]
[]
[null,"New Construction High-Rise (4 or more habitable stories):"]
[null,"For new construction high-rise projects, the energy modeler has three options for scoring: % Better than Title 24 (10325(c)(6)(B)(i)), Green Building Certification ((10325(c)(6)(A)  and 10325(c)(6)(C)) "]
[null,"and Percent Towards ZNE ((10325(c)(6)(B)(ii)). "]
[]
[null,"\"Percent Better than Title 24 Standard\" from PERF-1C (10325(c)(6)(B)(i)): "]
[null,"For new construction high-rise projects using this scoring option, the energy modeler will enter the requested values as shown on the PERF-1C generated in EnergyPro (Non Res T-24) or CBECC-Com."]
[null,"These values will be used to calculate an adjusted percentage improvement which is equal to the percentage improvement listed after the removal of the energy use associated with lighting, "]
[null,"receptacle, process, and process lighting.  In the project example below, the EnergyPro calculated improvement of 15.5% would be adjusted to an improvement of 21.8% after  the removal of"]
[null," these four values.  Points under TCAC Section 10325(c)(6)(B)(i) are awarded based on this adjusted percentage."]
[]
[]
[]
[]
[]
[]
[]
[]
[]
[]
[]
[]
[]
[]
[]
[]
[]
[]
[]
[]
[]
[]
[]
[]
[]
[]
[null,"Green Building Rating Program associated with project: This input will be used to calculate points under TCAC Sections 10325(c)(6)(A) and 10325(c)(6)(C).  Applicants that commit to developing"]
[null,"projects in accordance to any of the identified programs will get 5 points.  Additional points are awarded for higher certification levels."]
[]
[]
[]
[]
[]
[]
[]
[]
[]
[]
[]
[]
[]
[]
[]
[]
[]
[null,"\"Percent Towards Zero Net Energy (ZNE)\" using the California Utility Allowance Calculator (10325(c)(6)(B)(ii)): "]
[null,"For New Construction High-Rise projects using this scoring option, the energy modeler will utilize the California Utility Allowance Calculator (CUAC) in order to calculator the solar offset of a "]
[null,"project's tenant energy loads.  Gas use is to be converted to kWh for percentage ZNE offset calculations, assuming 1 Therm = 29.3 kWh, and 100,100 British Thermal Units (BTUs) = 29.3 kWh. "]
[null,"Residential energy loads modeled by the CUAC shall include all energy used by tenants, both gas and electric, regardless of whether the energy load is billed to the owner or the tenants.   This"]
[null,"number will be used to directly calculate the points under TCAC Section 10325(c)(6)(B)(ii)."]
[]
[]
[]
[]
[]
[]
[]
[]
[]
[]
[]
[]
[null,"Required Documentation for New Construction High-Rise Projects: PERF-1C (for % better than Title 24 Standard Points) and/or CUAC (for % towards ZNE Points) and/or Green Building Rating Program"]
[null,"Initial Checklist (for Green Building Certification Points), Bld or .cibd file, Summary of Proposed Measures (Application Phase tab of this workbook)."]
[]
[null,"Rehab Low-Rise (3 or fewer habitable stories):"]
[null,"For rehab low-rise projects, the energy modeler has three options for scoring: % Better than Existing Conditions (10325(c)(6)(E)), Green Building Certification ((10325(c)(6)(D)  and 10325(c)(6)(F))"]
[null,"and Additional Rehabilitation Project Measures ((10325(c)(6)(G)). "]
[]
[null,"Insert \"TDV Energy\" from ECON-2: For rehab low-rise construction projects, the energy modeler will reference the \"TDV\" values shown on the ECON-2 report generated in EnergyPro "]
[null,"(Res Performance).  If the modeler is using a one model approach where all improvements are modeled under the Alternatives tab in EnergyPro, only 1 ECON-2 will be needed for completion of"]
[null,"this application.  If the modeler is using a two model approach, with one model representing the \"existing\" conditions, and one model representing the \"improved\" conditions, the modeler will"]
[null,"need to generate an ECON-2 for each of his or her models.  The percent improvement between existing and improved TDV will be used to calculate points under TCAC Section 10325(c)(6)(E). "]
[]
[]
[]
[]
[]
[]
[]
[]
[]
[]
[]
[]
[]
[]
[]
[]
[null,"Green Building Rating Program associated with project: This input will be used to calculate points under TCAC Sections 10325(c)(6)(D) and 10325(c)(6)(F).  Applicants that commit to developing"]
[null,"projects in accordance to any of the identified programs will get 5 points.  Additional points are awarded for higher certification levels."]
[]
[]
[]
[]
[]
[]
[]
[]
[]
[]
[]
[]
[]
[]
[]
[]
[]
[]
[]
[]
[]
[]
[]
[]
[null,"Required Documentation for Rehab Low-Rise Projects: ECON-2 (2 are needed if using 2 models), .Bld file (2 are needed if using 2 models), Summary of Proposed Measures  (Application Phase tab"]
[null,"of this workbook), Green Building Rating Program initial checklist, Project plans, TCAC Existing Multifamily Assessment Report. "]
[]
[null,"For more information on how to write a TCAC Existing Multifamily Assessment Report, click here."]
[]
[null,"Rehab High-Rise (4 or more habitable stories):"]
[null,"For rehab high-rise projects, the energy modeler has three options for scoring: % Better than Existing Conditions (10325(c)(6)(E)), Green Building Certification ((10325(c)(6)(D)  and 10325(c)(6)(F))"]
[null,"and Additional Rehabilitation Project Measures ((10325(c)(6)(G)). "]
[]
[null,"Insert \"TDV Energy\" from ECON-2: For rehab high-rise construction projects, the energy modeler will reference the \"TDV\" values shown on the ECON-2 report generated in EnergyPro "]
[null,"(Non-Res Performance).  If the modeler is using a one model approach where all improvements are modeled under the Alternatives tab in EnergyPro, only 1 ECON-2 will be needed for completion"]
[null,"of this application.  If the modeler is using a two model approach, with one model representing the \"existing\" conditions, and one model representing the \"improved\" conditions, the modeler "]
[null,"will need to generate an ECON-2 for each of his or her models.  The percent improvement between existing and improved TDV will be used to calculate points under TCAC Section 10325(c)(6)(E). "]
[]
[null,"NOTE: \"TDV Energy\" will only appear on the ECON-2 form for high-rise projects in EnergyPro version 5.1.7.1 and later."]
[]
[]
[]
[]
[]
[]
[]
[]
[]
[]
[]
[]
[]
[]
[]
[null,"Green Building Rating Program associated with project: This input will be used to calculate points under TCAC Sections 10325(c)(6)(D) and 10325(c)(6)(F).  Applicants that commit to developing"]
[null,"projects in accordance to any of the identified programs will get 5 points.  Additional points are awarded for higher certification levels."]
[]
[]
[]
[]
[]
[]
[]
[]
[]
[]
[]
[]
[]
[]
[]
[]
[]
[]
[]
[]
[]
[]
[]
[]
[]
[null,"Required Documentation for Rehab High-Rise Projects: ECON-2 (2 are needed if using 2 models), .Bld file (2 are needed if using 2 models), Summary of Proposed Measures  (Application Phase tab"]
[null,"of this workbook), Green Building Rating Program initial checklist, Project plans, TCAC Existing Multifamily Assessment Report.  "]
[]
[null,"For more information on how to write a TCAC Existing Multifamily Assessment Report, click here."]
[]
[null,"Additional Rehabilitation Project Measures:"]
[]
[null,"For rehab low- and high-rise buildings, additional points can be awarded for the following measures under TCAC Section 10325(c)(6)(G):"]
[]
[]
[]
[]
[]
[]
[]
[]
[]
[]
[]
[]
[]
[]
[]
[]
[]
[]
[]
[]
[]
[]
[]
[]
[]
[]
[]
[]
[]
[]
[]
[]
[]
[]
[]
[]
[]
[null,"Required Documentation for Additional Rehabilitation Project Measures:  No documentation from the energy analyst is required at the application phase.  "]
[]
[null,"Calculated Energy Improvement and TCAC Sustainable Building Methods Points:"]
[]
[null,"This section will calculate modeled energy improvement based on the user inputs described above.  Note that a 30% improvement over Title-24 is required for all New Construction/Adaptive Reuse"]
[null,"projects, and a 10% improvement over existing is required for all Rehabilitation Projects.  The spreadsheet will flag any calculated percentages that do not meet this requirement.  Based on the "]
[null,"percent improvement, green building rating program goals, and/or additional rehab measures, a point total will be calculated.  This point total will be capped at 10 points per TCAC regulations.  "]
[null,"The spreadsheet will flag when total points are above 10 in this section."]
[]
[null,"Summary of Proposed Measures:"]
[null,"In this section, the energy modeler will describe all the modeled improvements over Title-24 or existing conditions.  These conditions must be verified by a third party HERS Whole House (HERS II) rater.  This section must be completed for ALL projects."]
[]
[null,"TAB 2: PLACED IN SERVICE PHASE"]
[]
[null,"This tab is intended to be used during the TCAC placed in service phase for projects applying for points under the Sustainable Building Methods Section (Section 10325(c)(6)).  This tab will note any "]
[null,"changes to the modeled energy improvement since the application phase and ask the modeler to explain those changes.  Changes to the model may be because different products were used, "]
[null,"changes in scope of work, etc.  Any such changes will be flagged in red text."]
[]
[null,"New Construction Low-Rise (3 or fewer habitable stories):"]
[]
[null,"\"Percent Better than Title 24 Standard\" from CF-1R (10325(c)(6)(B)(i)): "]
[null,"For New Construction Low-Rise projects using this scoring option, the energy modeler will reference the \"Percent Better than Standard\" shown on the CF-1R generated in EnergyPro (Res T-24), "]
[null,"CBECC-Res, or MicroPas.  This number will be used to directly calculate the points under TCAC Section 10325(c)(6)(B)(i)."]
[]
[]
[]
[]
[]
[]
[]
[]
[]
[]
[]
[]
[null,"\"Percent Towards Zero Net Energy (ZNE)\" using the California Utility Allowance Calculator (10325(c)(6)(B)(ii)): "]
[null,"For New Construction Low-Rise projects using this scoring option, the energy modeler will utilize the California Utility Allowance Calculator (CUAC) in order to calculator the solar offset of a "]
[null,"project's tenant energy loads.  Gas use is to be converted to kWh for percentage ZNE offset calculations, assuming 1 Therm = 29.3 kWh, and 100,100 British Thermal Units (BTUs) = 29.3 kWh. "]
[null,"Residential energy loads modeled by the CUAC shall include all energy used by tenants, both gas and electric, regardless of whether the energy load is billed to the owner or the tenants.   This"]
[null,"number will be used to directly calculate the points under TCAC Section 10325(c)(6)(B)(ii)."]
[]
[]
[]
[]
[]
[]
[]
[]
[]
[]
[]
[]
[null,"Green Building Rating Program associated with project: This input will be used to calculate points under TCAC Sections 10325(c)(6)(A) and 10325(c)(6)(C).  Projects that commit to developing"]
[null,"projects in accordance to any of the identified programs will get 5 points.  Additional points are awarded for higher certification levels per TCAC Section 10325(c)(6)(C). "]
[]
[]
[]
[]
[]
[]
[]
[]
[]
[]
[]
[]
[]
[]
[]
[]
[]
[null,"Please Explain any Changes to the Energy Model since the Application Phase: Here the modeler can explain any changes to the energy model that have occurred since the application phase.   "]
[null,"Changes to the model may be because different products were used, changes to the scope of work, etc."]
[]
[null,"Required Documentation for New Construction Low-Rise Projects: CF1-R (for % better than Title 24 Standard Points) and/or CUAC (for % towards ZNE Points), .Bld or .mp8 or .ribd file, Summary of "]
[null,"Installed Measures & Statement of Completion, CALGreen Mandatory Measures Checklist, Green Building Rating Program Label, Project Plans, Equipment Specifications, Bills of Lading for Appliances."]
[]
[null,"New Construction High-Rise (4 or more habitable stories):"]
[]
[null,"\"Percent Better than Title 24 Standard\" from PERF-1C (10325(c)(6)(B)(i)): "]
[null,"For new construction high-rise projects using this scoring option, the energy modeler will enter the requested values as shown on the PERF-1C generated in EnergyPro (Non Res T-24) or CBECC-Com."]
[null,"These values will be used to calculate an adjusted percentage improvement which is equal to the percentage improvement listed after the removal of the energy use associated with lighting, "]
[null,"receptacle, process, and process lighting.  In the project example below, the EnergyPro calculated improvement of 15.5% would be adjusted to an improvement of 21.8% after  the removal of"]
[null," these four values.  Points under TCAC Section 10325(c)(6)(B)(i) are awarded based on this adjusted percentage."]
[]
[]
[]
[]
[]
[]
[]
[]
[]
[]
[]
[]
[]
[]
[]
[]
[]
[]
[]
[]
[]
[]
[]
[]
[]
[]
[]
[]
[null,"\"Percent Towards Zero Net Energy (ZNE)\" using the California Utility Allowance Calculator (10325(c)(6)(B)(ii)): "]
[null,"For New Construction High-Rise projects using this scoring option, the energy modeler will utilize the California Utility Allowance Calculator (CUAC) in order to calculator the solar offset of a "]
[null,"project's tenant energy loads.  Gas use is to be converted to kWh for percentage ZNE offset calculations, assuming 1 Therm = 29.3 kWh, and 100,100 British Thermal Units (BTUs) = 29.3 kWh. "]
[null,"Residential energy loads modeled by the CUAC shall include all energy used by tenants, both gas and electric, regardless of whether the energy load is billed to the owner or the tenants.   This"]
[null,"number will be used to directly calculate the points under TCAC Section 10325(c)(6)(B)(ii)."]
[]
[]
[]
[]
[]
[]
[]
[]
[]
[]
[]
[]
[null,"Green Building Rating Program associated with project: This input will be used to calculate points under TCAC Sections 10325(c)(6)(A) and 10325(c)(6)(C).  Projects that commit to developing"]
[null,"projects in accordance to any of the identified programs will get 5 points.  Additional points are awarded for higher certification levels."]
[]
[]
[]
[]
[]
[]
[]
[]
[]
[]
[]
[]
[]
[]
[]
[]
[]
[]
[null,"Please Explain any Changes to the Energy Model since the Application Phase: Here the modeler can explain any changes to the energy model that have occurred since the application phase.  "]
[null,"Changes to the model may be because different products were used, changes to the scope of work, etc."]
[]
[null,"Required Documentation for New Construction High-Rise Projects: PERF-1C (for % better than Title 24 Standard Points) and/or CUAC (for % towards ZNE Points), Bld or .cibd file, Summary of "]
[null,"Installed Measures & Statement of Completion, CALGreen Mandatory Measures Checklist, Green Building Rating Program Label, Project Plans, Equipment Specifications, Bills of Lading for Appliances."]
[]
[null,"Rehab Low-Rise: (3 or fewer habitable stories)"]
[]
[null,"Insert \"TDV Energy\" from ECON-2: For rehab low-rise construction projects, the energy modeler will reference the \"TDV\" values shown on the ECON-2 generated in EnergyPro (Res Performance)."]
[null,"If the modeler is using a one model approach where all improvements are modeled under the Alternatives tab in EnergyPro, only 1 ECON-2 will be needed for completion of this application."]
[null,"If the modeler is using a two model approach, with one model representing the \"existing\" conditions, and one model representing the \"improved\" conditions, the modeler will need to generate"]
[null,"an ECON-2 for each of his or her models.  The percent improvement between existing and improved TDV will be used to calculate points under TCAC Section 10325(c)(6)(E). "]
[]
[]
[]
[]
[]
[]
[]
[]
[]
[]
[]
[]
[]
[]
[]
[]
[null,"Green Building Rating Program associated with project: This input will be used to calculate points under TCAC Sections 10325(c)(6)(D) and 10325(c)(6)(F).  Applicants that commit to developing"]
[null,"projects in accordance to any of the identified programs will get 5 points.  Additional points are awarded for higher certification levels."]
[]
[]
[]
[]
[]
[]
[]
[]
[]
[]
[]
[]
[]
[]
[]
[]
[]
[]
[]
[]
[]
[]
[]
[]
[]
[null,"Please Explain any Changes to the Energy Model since the Application Phase: Here the modeler can explain any changes to the energy model that have occurred since the application phase.   "]
[null,"Changes to the model may be because different products were used, changes to the scope of work, etc."]
[]
[null,"Required Documentation for Rehab Low-Rise Projects: ECON-2 (2 are needed if using 2 models), .Bld file (2 are needed if using 2 models), Summary of Installed Measures & Statement of "]
[null,"Completion, CALGreen Mandatory Measures Checklist, Green Building Rating Program Label, Project Plans, Equipment Specifications, Bills of Lading for Appliances."]
[]
[null,"Rehab High-Rise: (4 or more habitable stories)"]
[]
[null,"Insert \"TDV Energy\" from ECON-2: For rehab high-rise construction projects, the energy modeler will reference the \"TDV\" values shown on the ECON-2 generated in EnergyPro (Non-Res Performance)."]
[null,"If the modeler is using a one model approach where all improvements are modeled under the Alternatives tab in EnergyPro, only 1 ECON-2 will be needed for completion of this application."]
[null,"If the modeler is using a two model approach, with one model representing the \"existing\" conditions, and one model representing the \"improved\" conditions, the modeler will need to"]
[null,"generate an ECON-2 for each of his or her models.  The percent improvement between existing and improved TDV will be used to calculate points under TCAC Section 10325(c)(6)(E). "]
[]
[null,"NOTE: \"TDV Energy\" will only appear on the ECON-2 form for high-rise projects in EnergyPro version 5.1.7.1 and later."]
[]
[]
[]
[]
[]
[]
[]
[]
[]
[]
[]
[]
[]
[]
[]
[null,"Green Building Rating Program associated with project: This input will be used to calculate points under TCAC Sections 10325(c)(6)(D) and 10325(c)(6)(F).  Applicants that commit to developing"]
[null,"projects in accordance to any of the identified programs will get 5 points.  Additional points are awarded for higher certification levels."]
[]
[]
[]
[]
[]
[]
[]
[]
[]
[]
[]
[]
[]
[]
[]
[]
[]
[]
[]
[]
[]
[]
[]
[]
[]
[null,"Please Explain any Changes to the Energy Model since the Application Phase: Here the modeler can explain any changes to the energy model that have occurred since the application phase.   "]
[null,"Changes to the model may be because different products were used, changes to the scope of work, etc."]
[]
[null,"Required Documentation for Rehab High-Rise Projects: ECON-2 (2 are needed if using 2 models), .Bld file (2 are needed if using 2 models), Summary of Installed Measures & Statement of "]
[null,"Completion, CALGreen Mandatory Measures Checklist, Green Building Program Rating Label, Project Plans, Equipment Specifications, Bills of Lading for Appliances."]
[]
[null,"Summary of Installed Measures & Statement of Completion:"]
[]
[null,"This section will describe all the modeled improvements over Title-24 or existing conditions as reported in the application phase by the modeler and the proposed verification as reported by the"]
[null,"third party project verifier (HERS Whole House Rater or LEED for Homes Green Rater).   The verifier will provide a short description of the installed measure, and indicate whether it was installed "]
[null,"to meet the intent of the energy model.  By initialing this form, the HERS rater is certifying that they have documented the project's compliance with associated energy code requirements and "]
[null,"modeled expectations.  They agree to provide proof of verification to TCAC if required."]
[]
[]
[]
[null,"Version History: ","1.3 - Added points for ZNE pathway, updated Instructions"]
[null,null,"1.2 - Unlocked cells in Placed in Service tab, Added Minimum Construction Standard for Insulation"]
[null,null,"1.1- Overhaul to include new point structure and additional rehabilitation points."]
[null,null,"1.04 - change to high-rise rehab calculation engine.  Lock of application phase and PIS phase sheets.  Unlock of 1 cell in CalGreen Checklist sheet.  Fix of cutoff cells in instruction and CalGreen sheets."]

{"sheet":"APPLICATION PHASE","index":1,"n_rows":143,"n_cols":7,"rows_kept":143,"cut":false,"hidden":false,"merged":[[1,1,1,6],[125,1,125,6],[124,1,124,6],[121,1,121,2],[122,1,122,2],[2,2,2,3],[3,2,3,3],[8,1,8,6],[2,5,2,6],[3,5,3,6],[6,2,6,3],[5,2,5,3],[4,2,4,3],[6,4,6,6],[25,2,25,3],[4,5,4,6],[106,2,106,3],[109,2,109,3],[115,2,115,3],[100,1,100,6],[101,1,101,6],[9,1,9,6],[71,1,71,6],[85,1,85,6],[14,1,14,6],[35,1,35,6],[36,1,36,6],[34,1,34,6],[72,1,72,6],[73,1,73,6],[12,1,12,6],[43,1,43,6],[13,1,13,6],[19,2,19,3],[86,1,86,6],[87,1,87,6],[56,2,56,3],[62,2,62,3],[99,1,99,6],[132,2,132,5],[144,1,144,6],[139,2,139,5],[140,2,140,5],[141,2,141,5],[142,2,142,5],[123,1,123,6],[118,1,118,6],[117,1,117,6],[126,1,126,6],[138,2,138,5],[134,2,134,5],[135,2,135,5],[136,2,136,5],[137,2,137,5],[127,2,127,5],[120,1,120,2],[133,2,133,5],[128,2,128,5],[129,2,129,5],[130,2,130,5],[131,2,131,5]]}
[]
[null,"TCAC Sustainable Building Methods Worksheet - APPLICATION PHASE"]
[null,"Project Name:",null,null,"Project Address:"]
[null,"Energy Modeler Name:",null,null,"Energy Modeler Company:"]
[null,"Modeler 2013 CEA ID # (required for all projects):",null,null,"Modeler HERS Whole House Rater ID # (additional requirement for rehab projects only):"]
[null,"Modeler Phone # and E-mail:",null,null,"Application Date:",null,{"$f":"'Instructions and FAQs'!B3","v":"v 1.3"}]
[null,"Application Date:",{"$f":"TODAY()","v":"2015-02-12"}]
[]
[null,"Worksheet instructions: Please ensure that excel macros are enabled.  Fill the worksheet out from top to bottom, and a score will be generated.  This score represents the amount of"]
[null," points anticipated under TCAC's sustainable building methods section.  Please fill out all fields, marking fields that do not apply to your specific project with an \"N/A.\"  Note that all projects,"]
[null,"regardless of number of points earned, must meet the minimum construction standards for energy efficiency, as outlined in Section 10325(f)(7) of the TCAC regulations."]
[null,null,null,"Select Project Type:","Please Select"]
[null,"Notes: A low-rise project is any project with three or fewer habitable stories.  A high-rise project is any project with four or more habitable stories.  Except where 90 percent (90%) or more of the proposed units consist of either new construction or rehabilitation, projects consisting  of both (i) new construction or adaptive reuse and (ii) rehabilitation of existing units  shall be scored on meeting applicable standards for both construction types. In such cases, points shall be awarded based upon the lowest score achieved by each  construction type."]
[null," New Construction Low-Rise:"]
[null,"For new construction low-rise projects, the energy modeler has three options for scoring: % Better than Title 24 (10325(c)(6)(B)(i)),  Percent Towards ZNE ((10325(c)(6)(B)(ii)) and Green Building  Certification"]
[null," ((10325(c)(6)(A)  and 10325(c)(6)(C)). "]
[]
[null,null,"For Percent Better than Title 24 (10325(c)(6)(B)(i)) Points"]
[null,null,"Insert \"Percent Better than 2008 Standard\" from CF-1R:",null,null,{"$f":"CALCS!B9 &\" points earned\"","v":"0 points earned"}]
[null,null,"OR"]
[null,null,"For Percent Towards ZNE (10325(c)(6)(B)(ii)) Points"]
[null,null,"Insert the Annual kWh Output of the PV system(s) from CUAC:"]
[null,null,"Insert the Sum of the Annual Electric Usage from CUAC for all Unit Types:"]
[null,null,"Insert the Sum of the Annual Gas Usage from CUAC for all Unit Types:"]
[null,null,"Calculated \"Percent Towards ZNE\" from CUAC:",null,{"$f":"IF(ISBLANK(E23),0%,(((E22)/((E24*29.3)+E23))))","v":0},{"$f":"CALCS!D9 &\" points earned\"","v":"0 points earned"}]
[null,null,"AND/OR"]
[null,null,"For Green Building Certification   ((10325(c)(6)(A)  and 10325(c)(6)(C)) Points"]
[null,null,"Green Building Rating Program associated with project:",null,"None",{"$f":"CALCS!B32 &\" points earned\"","v":"0 points earned"}]
[]
[null,null,"For New Construction Low-Rise Projects, the following documentation will be submitted with this application: "]
[null,null,".Bld or .ribd or .mp8 file"]
[null,null,"Summary of Proposed Measures (below)"]
[null,null,{"$f":"IF(AND(ISBLANK(E22),ISBLANK(E19)),\" \",IF(ISBLANK(E22),\"CF1-R\",\"CUAC\"))","v":" "}]
[null,null,{"$f":"IF(E28=\"None\",\" \",IF(E28=\"GreenPoint Rating (less than 100 Points)\",\"Initial Green Point Rating Checklist\",IF(E28=\"GreenPoint Rating (100-124 Points)\",\"Initial Green Point Rating Checklist\",IF(E28=\"GreenPoint Rating (125+ Points)\",\"Initial Green Point Rating Checklist\",IF(E28=\"Enterprise Green Communities\",\"Initial Green Communities Checklist\",\"Initial LEED Checklist\")))))","v":" "}]
[null,"Click here for Further Instructions for New Construction Low-Rise Projects."]
[null,"New Construction High-Rise:"]
[null,"For new construction high-rise projects, the energy modeler has three options for scoring: % Better than Title 24 (10325(c)(6)(B)(i)),  Percent Towards ZNE ((10325(c)(6)(B)(ii)) and Green Building  Certification"]
[null," ((10325(c)(6)(A)  and 10325(c)(6)(C)). Note that the percentage shown in the modeling software will be adjusted, as described in the Instructions tab, to omit lighting, receptacle, and process loads."]
[]
[null,null,"For Percent Better than Title 24 (10325(c)(6)(B)(i)) Points"]
[null,null,"Insert  \"Standard Design\" Annual TDV Energy Use (TOTALS) from PERF-1C:"]
[null,null,"Insert  \"Proposed Design\" Annual TDV Energy Use (TOTALS) from PERF-1C:"]
[]
[null,"The following four end uses will be subtracted from the total as you enter them:"]
[null,null,"Insert  \"Standard Design\" Lighting TDV Energy Use from PERF-1C:"]
[null,null,"Insert  \"Proposed Design\" Lighting TDV Energy Use from PERF-1C:"]
[]
[null,null,"Insert  \"Standard Design\" Receptacle TDV Energy Use from PERF-1C:"]
[null,null,"Insert  \"Proposed Design\" Receptacle TDV Energy Use from PERF-1C:"]
[]
[null,null,"Insert  \"Standard Design\" Process TDV Energy Use from PERF-1C:"]
[null,null,"Insert  \"Proposed Design\" Process TDV Energy Use from PERF-1C:"]
[]
[null,null,"Insert  \"Standard Design\" Process Lighting TDV Energy Use from PERF-1C:"]
[null,null,"Insert  \"Proposed Design\" Process Lighting TDV Energy Use from PERF-1C:"]
[null,null,"Adjusted % Improvement over 2008 Standard (AUTO-CALCULATED):",null,{"$f":"CALCS!C19","v":0},{"$f":"CALCS!B17 &\" points earned\"","v":"0 points earned"}]
[null,null,"OR"]
[null,null,"For Percent Towards ZNE (10325(c)(6)(B)(ii)) Points"]
[null,null,"Insert the Annual kWh Output of the PV system(s) from CUAC:"]
[null,null,"Insert the Sum of the Annual Electric Usage from CUAC for all Unit Types:"]
[null,null,"Insert the Sum of the Annual Gas Usage from CUAC for all Unit Types:"]
[null,null,"Calculated \"Percent Towards ZNE\" from CUAC:",null,{"$f":"IF(ISBLANK(E60),0%,(((E59)/((E61*29.3)+E60))))","v":0},{"$f":"CALCS!D16 &\" points earned\"","v":"0 points earned"}]
[null,null,"AND/OR"]
[null,null,"For Green Building Certification   ((10325(c)(6)(A)  and 10325(c)(6)(C)) Points"]
[null,null,"Green Building Rating Program associated with project:",null,"None",{"$f":"CALCS!B32 &\" points earned\"","v":"0 points earned"}]
[]
[null,null,"For New Construction High-Rise Projects, the following documentation will be submitted with this application: "]
[null,null,"Summary of Proposed Measures (below)"]
[null,null,".Bld or .cibd file"]
[null,null,{"$f":"IF(AND((ISBLANK(E59)),(E56=0)),\" \",IF(ISBLANK(E59),\"PERF-1C\",\"CUAC\"))","v":" "}]
[null,null,{"$f":"IF(E65=\"None\",\" \",IF(E65=\"GreenPoint Rating (less than 100 Points)\",\"Initial Green Point Rating Checklist\",IF(E65=\"GreenPoint Rating (100-124 Points)\",\"Initial Green Point Rating Checklist\",IF(E65=\"GreenPoint Rating (125+ Points)\",\"Initial Green Point Rating Checklist\",IF(E65=\"Enterprise Green Communities\",\"Initial Green Communities Checklist\",\"Initial LEED Checklist\")))))","v":" "}]
[null,"Click here for Further Instructions for New Construction High-Rise Projects."]
[null,"Rehab Low-Rise:"]
[null,"For low-rise rehab construction projects, the energy modeler will reference the \"TDV Energy\" values shown on the ECON-2 generated in EnergyPro (Res Performance module)."]
[]
[null,null,"Insert existing building \"TDV Energy (kBtu/ft2-yr)\" from ECON-2:"]
[null,null,"Insert improved building \"TDV Energy (kBtu/ft2-yr)\" from ECON-2:",null,null,{"$f":"CALCS!B44 &\" points\"","v":"FALSE points"}]
[]
[null,null,"For Rehab Low-Rise Projects, the following documentation will be submitted with this application: "]
[null,null,"ECON-2 (2 are needed if using 2 models)"]
[null,null,".Bld file (2 are needed if using 2 models)"]
[null,null,"Summary of Proposed Measures (below)"]
[null,null,"Project Plans"]
[null,null,"TCAC Existing Multifamily Assessment Report"]
[null,null,"TCAC Combustion Appliance Safety Testing Worksheet"]
[null,"Click here for Further Instructions for Rehab Low-Rise Projects."]
[null,"Rehab High-Rise:"]
[null,"For high-rise rehab construction projects, the energy modeler will reference the \"TDV Energy\" values shown on the ECON-2 generated in EnergyPro (NonRes Performance module)."]
[]
[null,null,"Insert existing building \"TDV Energy (kBtu/ft2-yr)\" from ECON-2:"]
[null,null,"Insert improved building \"TDV Energy (kBtu/ft2-yr)\" from ECON-2:",null,null,{"$f":"CALCS!B44 &\" points\"","v":"FALSE points"}]
[]
[null,null,"For Rehab High-Rise Projects, the following documentation will be submitted with this application: "]
[null,null,"ECON-2 (2 are needed if using 2 models)"]
[null,null,".Bld file (2 are needed if using 2 models)"]
[null,null,"Summary of Proposed Measures (below)"]
[null,null,"Project Plans"]
[null,null,"TCAC Existing Multifamily Assessment Report"]
[null,null,"TCAC Combustion Appliance Safety Testing Worksheet"]
[null,"Click here for Further Instructions for Rehab High-Rise Projects."]
[null,"Additional Rehab Measures:"]
[null,"The following measures earn additional points for Rehab Low- and High-Rise Projects."]
[]
[null,null,"Green Building Rating Program associated with project:",null,"None",{"$f":"CALCS!J24 &\" points earned\"","v":"0 points earned"}]
[]
[null,null,"Will a renewable system (Solar PV, Solar Thermal) be installed?"]
[null,null,"No",null,{"$f":"CALCS!A47 &\" points\"","v":"0 points"}]
[]
[null,null,"Is the building converting from master metering to individual or sub-metering for all tenants?"]
[null,null,"No",null,{"$f":"CALCS!A48 &\" points\"","v":"0 points"}]
[]
[null,null,"Will the building establish sustainable building management practices, including ALL of the following?:"]
[null,null,"1. Develop project-specific maintenance manual, including information on all energy and green building features"]
[null,null,"2. Certify building management staff in sustainable building operations (BPI Multifamily Building Operator or equivalent)"]
[null,null,"3. Undertake formal building systems commissioning, retro-commissioning, or re-commissioning"]
[null,null,"No",null,{"$f":"CALCS!A49 &\" points\"","v":"0 points"}]
[]
[null,"Calculated Energy Improvement and TCAC Sustainable Building Methods Points:"]
[null,"THIS SECTION WILL BE AUTOMATICALLY CALCULATED WITH THE INPUTS ABOVE."]
[]
[null,"Calculated Percent Better than T-24 (2008):",null,{"$f":"IF(E12=\"New Construction Low-Rise\",E19,IF(E12=\"New Construction High-Rise\",CALCS!C19,\"Percent Calculated Here\"))","v":"Percent Calculated Here"}]
[null,"Calculated Percent Towards ZNE:",null,{"$f":"IF(E12=\"New Construction Low-Rise\",E25,IF(E12=\"New Construction High-Rise\",E62,\"Percent Calculated Here\"))","v":"Percent Calculated Here"},null,{"$f":"IF((CALCS!B32+CALCS!B19)>10,10,(CALCS!B32+CALCS!B19))","v":0},"Total Points Earned"]
[null,"Calculated Percent Better than Existing:",null,{"$f":"IF(E12=\"Rehab Low-Rise\",CALCS!A36,IF(E12=\"Rehab High-Rise\",CALCS!G36,\"Percent Calculated Here\"))","v":"Percent Calculated Here"},null,{"$f":"IF((CALCS!B44+CALCS!A50)>10,10,(CALCS!B44+CALCS!A50))","v":0},"Total Points Earned"]
[null,{"$f":"IF(D123<10%,\"WARNING: PROJECT DOES NOT CURRENTLY MEET MINIMUM CONSTRUCTION STANDARD OF 10% OVER EXISTING!\",IF(AND(D121<30%,D122<20%),\"WARNING: PROJECT DOES NOT CURRENTLY MEET MINIMUM CONSTRUCTION STANDARD OF 30% BETTER THAN TITLE 24 OR 20% TOWARDS ZNE!\",\" \"))","v":" "}]
[null,"Summary of Proposed Measures:"]
[null,"Please list below the proposed energy saving measures modeled for your project.  These measures will be verified by a qualified third party HERS Whole House (HERS II) rater"]
[null,"at the Placed in Service phase."]
[null,null,"Description of Proposed Energy Savings Measure:"]
[null,"Measure #1"]
[null,"Measure #2"]
[null,"Measure #3"]
[null,"Measure #4"]
[null,"Measure #5"]
[null,"Measure #6"]
[null,"Measure #7"]
[null,"Measure #8"]
[null,"Measure #9"]
[null,"Measure #10"]
[null,"Measure #11"]
[null,"Measure #12"]
[null,"Measure #13"]
[null,"Measure #14"]
[null,"Measure #15"]

{"sheet":"CALCS","index":2,"n_rows":50,"n_cols":12,"rows_kept":50,"cut":false,"hidden":true,"merged":[]}
["NEW CONSTRUCTION"]
["TITLE 24",null,"% ZNE"]
["Low Rise",null,"Low Rise"]
[0,0,0,0]
[0.32500000000000001,2,0.2,2]
[0.35,3,0.3,3]
[0.4,5,0.4,4]
[null,null,0.5,5]
["POINTS IF LOW RISE:",{"$f":"INDEX(B4:B7,MATCH('APPLICATION PHASE'!E19,A4:A7,1))","v":0},"POINTS IF LOW RISE:",{"$f":"IF(ISBLANK('APPLICATION PHASE'!E23),0,INDEX(D4:D8,MATCH('APPLICATION PHASE'!E25,C4:C8,1)))","v":0}]
[]
["High Rise",null,"High Rise"]
[0,0,0,0,null,null,null,null,"REHAB"]
[0.32500000000000001,3,0.2,3,null,null,null,null,"None",0,"None"," "]
[0.4,5,0.3,4,null,null,null,null,"GreenPoint Rating (Less than 65 Points)",5,"GreenPoint Rating (Less than 65 Points)","Initial GreenPoint Rated Checklist"]
[null,null,0.4,5,null,null,null,null,"GreenPoint Rating (65-94 Points)",7,"GreenPoint Rating (65-94 Points)","Initial GreenPoint Rated Checklist"]
[null,null,"POINTS IF HIGH RISE:",{"$f":"IF(ISBLANK('APPLICATION PHASE'!E60),0,INDEX(D11:D15,MATCH('APPLICATION PHASE'!E62,C11:C15,1)))","v":0},null,null,null,null,"GreenPoint Rating (95-119 Points)",8,"GreenPoint Rating (95-119 Points)","Initial GreenPoint Rated Checklist"]
["POINTS IF HIGH RISE:",{"$f":"INDEX(B12:B14,MATCH(C19,A12:A14,1))","v":0},{"$f":"'APPLICATION PHASE'!E41-'APPLICATION PHASE'!E45-'APPLICATION PHASE'!E48-'APPLICATION PHASE'!E51-'APPLICATION PHASE'!E54","v":0},"adjusted TDV",null,null,null,null,"GreenPoint Rating (120+ Points)",10,"GreenPoint Rating (120+ Points)","Initial GreenPoint Rated Checklist"]
[null,null,{"$f":"'APPLICATION PHASE'!E42-'APPLICATION PHASE'!E46-'APPLICATION PHASE'!E49-'APPLICATION PHASE'!E52-'APPLICATION PHASE'!E55","v":0},"adjusted TDV",null,null,null,null,"LEED (Certified)",5,"LEED (Certified)","Initial LEED Checklist"]
["TOTAL POINTS:",{"$f":"IF('APPLICATION PHASE'!E12=\"New Construction Low-Rise\",(CALCS!B9+D9),IF('APPLICATION PHASE'!E12=\"New Construction High-Rise\",(CALCS!B17+D16),\"0\"))","v":"0"},{"$f":"IF(C17=0,0,(C17-C18)/C17)","v":0},"adjusted improvement",null,null,null,null,"LEED (Silver)",8,"LEED (Silver)","Initial LEED Checklist"]
[null,null,null,null,null,null,null,null,"LEED (Gold+)",10,"LEED (Gold+)","Initial LEED Checklist"]
[null,null,null,null,null,null,null,null,"Enterprise Green Communities",5,"Enterprise Green Communities","Initial Enterprise Green Communities Checklist"]
["NEW CONSTRUCTION",null,null,null,null,null,null,null,"Enterprise Green Communities - Moderate Rehabilitation",8,"Enterprise Green Communities - Moderate Rehabilitation","Initial Enterprise Green Communities Checklist"]
["None",0,null,null,null,null,null,null,"Enterprise Green Communities - Substantial Rehabilitation",10,"Enterprise Green Communities - Substantial Rehabilitation","Initial Enterprise Green Communities Checklist"]
["GreenPoint Rating (Less than 100 Points)",5,null,null,null,null,null,null,"POINTS:",{"$f":"IF('APPLICATION PHASE'!E12=\"Rehab Low-Rise\",VLOOKUP('APPLICATION PHASE'!E104,CALCS!I13:J23,2,FALSE),IF('APPLICATION PHASE'!E12=\"Rehab High-Rise\",VLOOKUP('APPLICATION PHASE'!E104,CALCS!I13:J23,2,FALSE),0))","v":0},null,{"$f":"IF('APPLICATION PHASE'!E12=\"Rehab Low-Rise\",VLOOKUP('APPLICATION PHASE'!E104,CALCS!K13:L23,2,FALSE),IF('APPLICATION PHASE'!E12=\"Rehab High-Rise\",VLOOKUP('APPLICATION PHASE'!E104,CALCS!K13:L23,2,FALSE),\" \"))","v":" "}]
["GreenPoint Rating (100-124 Points)",8]
["GreenPoint Rating (125+ Points)",10]
["LEED (less than Silver)",5]
["LEED (Silver)",8]
["LEED (Gold+)",10]
["Enterprise Green Communities",5]
[]
["POINTS:",{"$f":"IF('APPLICATION PHASE'!E12=\"New Construction Low-Rise\",VLOOKUP('APPLICATION PHASE'!E28,CALCS!A23:B30,2,FALSE),IF('APPLICATION PHASE'!E12=\"New Construction High-Rise\",VLOOKUP('APPLICATION PHASE'!E65,CALCS!A23:B30,2,FALSE),0))","v":0}]
[]
["REHAB CALC"]
[]
[{"$f":"IF('APPLICATION PHASE'!E77=0,0,('APPLICATION PHASE'!E76-'APPLICATION PHASE'!E77)/'APPLICATION PHASE'!E76)","v":0},"Percent improvement (low-rise)",null,null,null,null,{"$f":"IF('APPLICATION PHASE'!E91=0,0,('APPLICATION PHASE'!E90-'APPLICATION PHASE'!E91)/'APPLICATION PHASE'!E90)","v":0},"Percent improvement (high-rise)"]
[]
[0,0]
[0.15,3]
[0.2,5]
[0.25,7]
[0.3,10]
[]
["POINTS:",{"$f":"IF('APPLICATION PHASE'!E12=\"Rehab Low-Rise\",INDEX(B38:B42,MATCH(A36,A38:A42,1)),IF('APPLICATION PHASE'!E12=\"Rehab High-Rise\",INDEX(B38:B42,MATCH(G36,A38:A42,1))))","v":false}]
["REHAB EXTRA POINTS:"]
[{"$f":"J24","v":0}]
[{"$f":"IF('APPLICATION PHASE'!C107=\"No\",0,3)","v":0}]
[{"$f":"IF('APPLICATION PHASE'!C110=\"No\",0,3)","v":0}]
[{"$f":"IF('APPLICATION PHASE'!C116=\"No\",0,3)","v":0}]
[{"$f":"SUM(A46:A49)","v":0},"TOTAL"]

{"sheet":"PLACED IN SERVICE PHASE","index":3,"n_rows":154,"n_cols":7,"rows_kept":154,"cut":false,"hidden":false,"merged":[[1,1,1,6],[6,4,6,6],[4,2,4,3],[2,2,2,3],[2,5,2,6],[3,2,3,3],[3,5,3,6],[5,2,5,3],[6,2,6,3],[4,5,4,6],[43,1,43,6],[44,1,44,6],[86,1,86,6],[30,2,31,4],[74,2,75,4],[50,1,50,6],[62,2,62,3],[68,2,68,3],[153,2,153,3],[153,5,153,6],[152,2,152,3],[107,1,107,6],[108,1,108,6],[109,1,109,6],[110,1,110,6],[129,1,129,6],[118,2,119,4],[150,1,150,6],[132,5,133,5],[152,5,152,6],[96,2,97,4],[130,1,130,6],[131,1,131,6],[88,1,88,6],[87,1,87,6],[8,1,8,6],[9,1,9,6],[13,1,13,6],[14,1,14,6],[42,1,42,6],[12,1,12,6],[18,2,18,3],[24,2,24,3]]}
[]
[null,"TCAC Sustainable Building Methods Worksheet - PLACED-IN-SERVICE PHASE"]
[null,"Project Name:",null,null,"Project Address:"]
[null,"Energy Modeler Name:",null,null,"Energy Modeler Company:"]
[null,"Modeler 2013 CEA ID # (required for all projects):",null,null,"Modeler HERS Whole House Rater ID # (additional requirement for rehab projects only):"]
[null,"Modeler Phone # and E-mail:",null,null,"Application Date:",null,{"$f":"'Instructions and FAQs'!B3","v":"v 1.3"}]
[null,"Application Date:",{"$f":"TODAY()","v":"2015-02-12"}]
[]
[null,"Worksheet instructions: Please ensure that excel macros are enabled.  Fill the worksheet out from top to bottom, indicating any changes in the energy model for the Placed in Service Phase."]
[null,"Please fill out all fields, marking fields that do not apply to your specific project with an \"N/A.\" Note that all projects, regardless of number of points earned, must meet the minimum "]
[null,"construction standards for energy efficiency, as outlined in Section 10325(f)(7) of the TCAC regulations."]
[null,null,null,"Select Project Type:","Please Select"]
[null,"Notes: A low-rise project is any project with three or fewer habitable stories.  A high-rise project is any project with four or more habitable stories.  Except where 90 percent (90%) or more of the proposed units consist of either new construction or rehabilitation, projects consisting  of both (i) new construction or adaptive reuse and (ii) rehabilitation of existing units  shall be scored on meeting applicable standards for both construction types. In such cases, points shall be awarded based upon the lowest score achieved by each  construction type."]
[null," New Construction Low-Rise:"]
[null,"For new construction low-rise projects, the energy modeler has three options for scoring: % Better than Title 24 (10325(c)(6)(B)(i)),  Percent Towards ZNE ((10325(c)(6)(B)(ii)) and Green Building  Certification"]
[null," ((10325(c)(6)(A)  and 10325(c)(6)(C)). "]
[null,null,"For Percent Better than Title 24 (10325(c)(6)(B)(i)) Points"]
[null,null,"Insert \"Percent Better than 2008 Standard\" from CF-1R:",null,null,{"$f":"CALCS2!B8 &\" points\"","v":"0 points"}]
[null,null,"OR"]
[null,null,"For Percent Towards ZNE (10325(c)(6)(B)(ii)) Points"]
[null,null,"Insert the Annual kWh Output of the PV system(s) from CUAC:"]
[null,null,"Insert the Sum of the Annual Electric Usage from CUAC for all Unit Types:"]
[null,null,"Insert the Sum of the Annual Gas Usage from CUAC for all Unit Types:"]
[null,null,"Calculated \"Percent Towards ZNE\" from CUAC:",null,{"$f":"IF(ISBLANK(E22),0%,(((E21)/((E23*29.3)+E22))))","v":0},{"$f":"CALCS2!D9 &\" points earned\"","v":"0 points earned"}]
[null,null,"AND/OR"]
[null,null,"For Green Building Certification   ((10325(c)(6)(A)  and 10325(c)(6)(C)) Points"]
[null,null,"Green Building Rating Program associated with project:",null,"None",{"$f":"CALCS2!B31 &\" points\"","v":"0 points"}]
[null,null,{"$f":"IF(OR(E18<>'APPLICATION PHASE'!E19,E24<>'APPLICATION PHASE'!E25),\"WARNING: CALCULATED IMPROVEMENT DOES NOT MATCH APPLICATION PHASE.  PLEASE EXPLAIN BELOW!\",\"\")","v":""}]
[null,null,{"$f":"IF(AND(E18<30%,E24<20%),\"WARNING: PROJECT DOES NOT CURRENTLY MEET MINIMUM CONSTRUCTION STANDARD OF 30% BETTER THAN TITLE 24 OR 20% TOWARDS ZNE!\",\" \")","v":"WARNING: PROJECT DOES NOT CURRENTLY MEET MINIMUM CONSTRUCTION STANDARD OF 30% BETTER THAN TITLE 24 OR 20% TOWARDS ZNE!"}]
[null,null,"Please explain any changes to the work scope since the application phase:"]
[]
[]
[]
[null,null,"For New Construction Low-Rise Projects, the following documentation will be submitted with this application: "]
[null,null,"CF1-R (Title 24 Path) or CUAC (ZNE Path)"]
[null,null,".Bld or .ribd or .mp8 file"]
[null,null,"Summary of Installed Measures & Statement of Completion (below)"]
[null,null,"CALGreen Mandatory Measures Checklist (See CALGreen Checklist Tab)"]
[null,null,"Project Plans"]
[null,null,"Equipment Specifications"]
[null,null,"Bills of Lading for Appliances"]
[null,null,{"$f":"IF(E27=\"None\",\" \",IF(E27=\"GreenPoint Rating (less than 100 Points)\",\"Green Point Rating Certificate\",IF(E27=\"GreenPoint Rating (100-124 Points)\",\"Green Point Rating Certificate\",IF(E27=\"GreenPoint Rating (125+ Points)\",\"Green Point Rating Certificate\",IF(E27=\"Enterprise Green Communities\",\"Green Communities Certificate\",\"LEED Certificate\")))))","v":" "}]
[]
[null,"New Construction High-Rise:"]
[null,"For new construction high-rise projects, the energy modeler has three options for scoring: % Better than Title 24 (10325(c)(6)(B)(i)),  Percent Towards ZNE ((10325(c)(6)(B)(ii)) and Green Building  Certification"]
[null," ((10325(c)(6)(A)  and 10325(c)(6)(C)). Note that the percentage shown in the modeling software will be adjusted, as described in the Instructions tab, to omit lighting, receptacle, and process loads."]
[null,null,"For Percent Better than Title 24 (10325(c)(6)(B)(i)) Points"]
[null,null,"Insert  \"Standard Design\" Annual TDV Energy Use (TOTALS) from PERF-1C:"]
[null,null,"Insert  \"Proposed Design\" Annual TDV Energy Use (TOTALS) from PERF-1C:"]
[]
[null,"The following four end uses will be subtracted from the total as you enter them:"]
[null,null,"Insert  \"Standard Design\" Lighting TDV Energy Use from PERF-1C:"]
[null,null,"Insert  \"Proposed Design\" Lighting TDV Energy Use from PERF-1C:"]
[]
[null,null,"Insert  \"Standard Design\" Receptacle TDV Energy Use from PERF-1C:"]
[null,null,"Insert  \"Proposed Design\" Receptacle TDV Energy Use from PERF-1C:"]
[]
[null,null,"Insert  \"Standard Design\" Process TDV Energy Use from PERF-1C:"]
[null,null,"Insert  \"Proposed Design\" Process TDV Energy Use from PERF-1C:"]
[]
[null,null,"Insert  \"Standard Design\" Process Lighting TDV Energy Use from PERF-1C:",null,null,{"$f":"CALCS2!C19","v":0}]
[null,null,"Insert  \"Proposed Design\" Process Lighting TDV Energy Use from PERF-1C:",null,null,{"$f":"CALCS2!B17 &\" points\"","v":"0 points"}]
[null,null,"OR"]
[null,null,"For Percent Towards ZNE (10325(c)(6)(B)(ii)) Points"]
[null,null,"Insert the Annual kWh Output of the PV system(s) from CUAC:"]
[null,null,"Insert the Sum of the Annual Electric Usage from CUAC for all Unit Types:"]
[null,null,"Insert the Sum of the Annual Gas Usage from CUAC for all Unit Types:"]
[null,null,"Calculated \"Percent Towards ZNE\" from CUAC:",null,{"$f":"IF(ISBLANK(E66),0%,(((E65)/((E67*29.3)+E66))))","v":0},{"$f":"CALCS2!D22 &\" points earned\"","v":" points earned"}]
[null,null,"AND/OR"]
[null,null,"For Green Building Certification   ((10325(c)(6)(A)  and 10325(c)(6)(C)) Points"]
[null,null,"Green Building Rating Program associated with project:",null,"None",{"$f":"CALCS2!B31 &\" points\"","v":"0 points"}]
[null,null,{"$f":"IF(OR(F61<>'APPLICATION PHASE'!E56,E68<>'APPLICATION PHASE'!E62),\"WARNING: CALCULATED IMPROVEMENT DOES NOT MATCH APPLICATION PHASE.  PLEASE EXPLAIN BELOW!\",\"\")","v":""}]
[null,null,{"$f":"IF(AND(F61<30%,E68<20%),\"WARNING: PROJECT DOES NOT CURRENTLY MEET MINIMUM CONSTRUCTION STANDARD OF 30% BETTER THAN TITLE 24 OR 20% TOWARDS ZNE!\",\" \")","v":"WARNING: PROJECT DOES NOT CURRENTLY MEET MINIMUM CONSTRUCTION STANDARD OF 30% BETTER THAN TITLE 24 OR 20% TOWARDS ZNE!"}]
[null,null,"Please explain any changes to the energy model since the application phase:"]
[]
[]
[]
[null,null,"For New Construction High-Rise Projects, the following documentation will be submitted with this application: "]
[null,null,"PERF-1C (Title 24 Path) or CUAC (ZNE Path)"]
[null,null,".Bld or .cibd file"]
[null,null,"Summary of Installed Measures & Statement of Completion (below)"]
[null,null,"CALGreen Mandatory Measures Checklist (See CALGreen Checklist Tab)"]
[null,null,"Project Plans"]
[null,null,"Equipment Specifications"]
[null,null,"Bills of Lading for Appliances"]
[null,null,{"$f":"IF(E71=\"None\",\" \",IF(E71=\"GreenPoint Rating (less than 100 Points)\",\"Green Point Rating Certificate\",IF(E71=\"GreenPoint Rating (100-124 Points)\",\"Green Point Rating Certificate\",IF(E71=\"GreenPoint Rating (125+ Points)\",\"Green Point Rating Certificate\",IF(E71=\"Enterprise Green Communities\",\"Green Communities Certificate\",\"LEED Certificate\")))))","v":" "}]
[]
[null,"Rehab Low-Rise:"]
[null,"For low-rise rehab construction projects, the energy modeler will reference the \"TDV Energy\" values shown on the ECON-2 generated in EnergyPro (Res Performance module)."]
[]
[null,null,"Insert existing building \"TDV Energy (kBtu/ft2-yr)\" from ECON-2:",null,null,{"$f":"CALCS2!A36","v":0}]
[null,null,"Insert improved building \"TDV Energy (kBtu/ft2-yr)\" from ECON-2:",null,null,{"$f":"CALCS2!B43 &\" points\"","v":"FALSE points"}]
[null,null,"Green Building Rating Program associated with project:",null,"None",{"$f":"CALCS2!J26 &\" points earned\"","v":"0 points earned"}]
[null,null,{"$f":"IF(F91<>'APPLICATION PHASE'!D123,\"WARNING: CALCULATED IMPROVEMENT DOES NOT MATCH APPLICATION PHASE.  PLEASE EXPLAIN BELOW!\",\"\")","v":"WARNING: CALCULATED IMPROVEMENT DOES NOT MATCH APPLICATION PHASE.  PLEASE EXPLAIN BELOW!"}]
[null,null,{"$f":"IF(F91<10%,\"WARNING: PROJECT DOES NOT CURRENTLY MEET MINIMUM CONSTRUCTION STANDARD OF 10% BETTER THAN EXISTING!\",\" \")","v":"WARNING: PROJECT DOES NOT CURRENTLY MEET MINIMUM CONSTRUCTION STANDARD OF 10% BETTER THAN EXISTING!"}]
[null,null,"Please explain any changes to the energy model since the application phase:"]
[]
[]
[]
[null,null,"For Rehab Low-Rise Projects, the following documentation will be submitted with this application: "]
[null,null,"ECON-2 (2 are needed if using 2 models)"]
[null,null,".Bld file (2 are needed if using 2 models)"]
[null,null,"Summary of Installed Measures & Statement of Completion (below)"]
[null,null,"CALGreen Mandatory Measures Checklist (See CALGreen Checklist Tab)"]
[null,null,"Project Plans and Equipment Specifications"]
[null,null,"Bills of Lading for Appliances"]
[null,null,{"$f":"CALCS2!L26","v":" "}]
[]
[null,"Rehab High-Rise:"]
[null,"For high-rise rehab construction projects, the energy modeler will reference the \"TDV Energy\" values shown on the ECON-2 generated in EnergyPro (NonRes Performance module)."]
[]
[]
[null,null,"Insert existing building \"TDV Energy (kBtu/ft2-yr)\" from ECON-2:",null,null,{"$f":"CALCS2!G36","v":0}]
[null,null,"Insert improved building \"TDV Energy (kBtu/ft2-yr)\" from ECON-2:",null,null,{"$f":"CALCS2!B43 &\" points\"","v":"FALSE points"}]
[null,null,"Green Building Rating Program associated with project:",null,"None",{"$f":"CALCS2!J26 &\" points earned\"","v":"0 points earned"}]
[null,null,{"$f":"IF(F113<>'APPLICATION PHASE'!D123,\"WARNING: CALCULATED IMPROVEMENT DOES NOT MATCH APPLICATION PHASE.  PLEASE EXPLAIN BELOW!\",\"\")","v":"WARNING: CALCULATED IMPROVEMENT DOES NOT MATCH APPLICATION PHASE.  PLEASE EXPLAIN BELOW!"}]
[null,null,{"$f":"IF(F113<10%,\"WARNING: PROJECT DOES NOT CURRENTLY MEET MINIMUM CONSTRUCTION STANDARD OF 10% BETTER THAN EXISTING!\",\" \")","v":"WARNING: PROJECT DOES NOT CURRENTLY MEET MINIMUM CONSTRUCTION STANDARD OF 10% BETTER THAN EXISTING!"}]
[null,null,"Please explain any changes to the energy model since the application phase:"]
[]
[]
[]
[null,null,"For Rehab High-Rise Projects, the following documentation will be submitted with this application: "]
[null,null,"ECON-2 (2 are needed if using 2 models)"]
[null,null,".Bld file (2 are needed if using 2 models)"]
[null,null,"Summary of Installed Measures & Statement of Completion (below)"]
[null,null,"CALGreen Mandatory Measures Checklist (See CALGreen Checklist Tab)"]
[null,null,"Project Plans and Equipment Specifications"]
[null,null,"Bills of Lading for Appliances"]
[null,null,{"$f":"CALCS2!L26","v":" "}]
[]
[null,"Summary of Installed Measures & Statement of Completion"]
[null,"The third party verifier (HERS rater) will indicate below the measures verified.  This section shall be completed for ALL projects."]
[null,null,null,null,null,"Was Measure Installed as Intended?"]
[null,null,"Installed Energy Savings Measure:","Means of Verification:","Verifier Comments:",null,"Initials of Verifier:"]
[null,"Measure #1",{"$f":"'APPLICATION PHASE'!C129","v":0},null,null,"Please Select"]
[null,"Measure #2",{"$f":"'APPLICATION PHASE'!C130","v":0},null,null,"Please Select"]
[null,"Measure #3",{"$f":"'APPLICATION PHASE'!C131","v":0},null,null,"Please Select"]
[null,"Measure #4",{"$f":"'APPLICATION PHASE'!C132","v":0},null,null,"Please Select"]
[null,"Measure #5",{"$f":"'APPLICATION PHASE'!C133","v":0},null,null,"Please Select"]
[null,"Measure #6",{"$f":"'APPLICATION PHASE'!C134","v":0},null,null,"Please Select"]
[null,"Measure #7",{"$f":"'APPLICATION PHASE'!C135","v":0},null,null,"Please Select"]
[null,"Measure #8",{"$f":"'APPLICATION PHASE'!C136","v":0},null,null,"Please Select"]
[null,"Measure #9",{"$f":"'APPLICATION PHASE'!C137","v":0},null,null,"Please Select"]
[null,"Measure #10",{"$f":"'APPLICATION PHASE'!C138","v":0},null,null,"Please Select"]
[null,"Measure #11",{"$f":"'APPLICATION PHASE'!C139","v":0},null,null,"Please Select"]
[null,"Measure #12",{"$f":"'APPLICATION PHASE'!C140","v":0},null,null,"Please Select"]
[null,"Measure #13",{"$f":"'APPLICATION PHASE'!C141","v":0},null,null,"Please Select"]
[null,"Measure #14",{"$f":"'APPLICATION PHASE'!C142","v":0},null,null,"Please Select"]
[null,"Measure #15",{"$f":"'APPLICATION PHASE'!C143","v":0},null,null,"Please Select"]
[]
[null,"As the verifier for this project, I confirm that the following energy savings measures have been installed and meet the intent of the energy model."]
[]
[null,"Verifier Name:",null,null,"Verifier Company:"]
[null,"Verifier Phone # and E-mail:",null,null,"Verifier HERS Whole House Rater or LEED for Homes Green Rater ID #:"]

{"sheet":"CALCS2","index":4,"n_rows":48,"n_cols":12,"rows_kept":48,"cut":false,"hidden":true,"merged":[]}
["NEW CONSTRUCTION"]
[null,null,"% ZNE"]
["Low Rise",null,"Low Rise"]
[0,0,0,0]
[0.32500000000000001,2,0.2,2]
[0.35,3,0.3,3]
[0.4,5,0.4,4]
["POINTS IF LOW RISE:",{"$f":"INDEX(B4:B7,MATCH('PLACED IN SERVICE PHASE'!E18,A4:A7,1))","v":0},0.5,5]
[null,null,"POINTS IF LOW RISE:",{"$f":"IF(ISBLANK('PLACED IN SERVICE PHASE'!E22),0,INDEX(D4:D8,MATCH('PLACED IN SERVICE PHASE'!E24,C4:C8,1)))","v":0}]
[]
[null,null,"High Rise"]
[null,null,0,0]
["High Rise",null,0.2,3]
[0,0,0.3,4,null,null,null,null,"REHAB"]
[0.32500000000000001,3,0.4,5,null,null,null,null,"None",0,"None"," "]
[0.4,5,"POINTS IF HIGH RISE:",{"$f":"IF(ISBLANK('PLACED IN SERVICE PHASE'!E66),0,INDEX(D11:D15,MATCH('PLACED IN SERVICE PHASE'!E68,C11:C15,1)))","v":0},null,null,null,null,"GreenPoint Rating (Less than 65 Points)",5,"GreenPoint Rating (Less than 65 Points)","GreenPoint Rating Certificate"]
["POINTS IF HIGH RISE:",{"$f":"INDEX(B14:B16,MATCH(C19,A14:A16,1))","v":0},{"$f":"'PLACED IN SERVICE PHASE'!E48-'PLACED IN SERVICE PHASE'!E52-'PLACED IN SERVICE PHASE'!E55-'PLACED IN SERVICE PHASE'!E58-'PLACED IN SERVICE PHASE'!E61","v":0},"adjusted TDV",null,null,null,null,"GreenPoint Rating (65-94 Points)",7,"GreenPoint Rating (65-94 Points)","GreenPoint Rating Certificate"]
[null,null,{"$f":"'PLACED IN SERVICE PHASE'!E49-'PLACED IN SERVICE PHASE'!E53-'PLACED IN SERVICE PHASE'!E56-'PLACED IN SERVICE PHASE'!E59-'PLACED IN SERVICE PHASE'!E62","v":0},"adjusted TDV",null,null,null,null,"GreenPoint Rating (95-119 Points)",8,"GreenPoint Rating (95-119 Points)","GreenPoint Rating Certificate"]
["TOTAL POINTS:",{"$f":"IF('PLACED IN SERVICE PHASE'!E12=\"New Construction Low-Rise\",CALCS2!B8,IF('PLACED IN SERVICE PHASE'!E12=\"New Construction High-Rise\",CALCS2!B17,\"0\"))","v":"0"},{"$f":"IF(C17=0,0,(C17-C18)/C17)","v":0},"adjusted improvement",null,null,null,null,"GreenPoint Rating (120+ Points)",10,"GreenPoint Rating (120+ Points)","GreenPoint Rating Certificate"]
[null,null,null,null,null,null,null,null,"LEED (Certified)",5,"LEED (Certified)","LEED Certificate"]
[null,null,null,null,null,null,null,null,"LEED (Silver)",8,"LEED (Silver)","LEED Certificate"]
["None",0,null,null,null,null,null,null,"LEED (Gold+)",10,"LEED (Gold+)","LEED Certificate"]
["GreenPoint Rating (Less than 100 Points)",5,null,null,null,null,null,null,"Enterprise Green Communities",5,"Enterprise Green Communities","Enterprise Green Communities Certificate"]
["GreenPoint Rating (100-124 Points)",8,null,null,null,null,null,null,"Enterprise Green Communities - Moderate Rehabilitation",8,"Enterprise Green Communities - Moderate Rehabilitation","Enterprise Green Communities Certificate"]
["GreenPoint Rating (125+ Points)",10,null,null,null,null,null,null,"Enterprise Green Communities - Substantial Rehabilitation",10,"Enterprise Green Communities - Substantial Rehabilitation","Enterprise Green Communities Certificate"]
["LEED (less than Silver)",5,null,null,null,null,null,null,"POINTS:",{"$f":"IF('PLACED IN SERVICE PHASE'!E12=\"Rehab Low-Rise\",VLOOKUP('PLACED IN SERVICE PHASE'!E93,CALCS2!I15:J25,2,FALSE),IF('PLACED IN SERVICE PHASE'!E12=\"Rehab High-Rise\",VLOOKUP('PLACED IN SERVICE PHASE'!E115,CALCS2!I15:J25,2,FALSE),0))","v":0},null,{"$f":"IF('PLACED IN SERVICE PHASE'!E12=\"Rehab Low-Rise\",VLOOKUP('PLACED IN SERVICE PHASE'!E93,CALCS2!K15:L25,2,FALSE),IF('PLACED IN SERVICE PHASE'!E12=\"Rehab High-Rise\",VLOOKUP('PLACED IN SERVICE PHASE'!E115,CALCS2!K15:L25,2,FALSE),\" \"))","v":" "}]
["LEED (Silver)",8]
["LEED (Gold+)",10]
["Enterprise Green Communities",5]
[]
["POINTS:",{"$f":"IF('PLACED IN SERVICE PHASE'!E12=\"New Construction Low-Rise\",VLOOKUP('PLACED IN SERVICE PHASE'!E27,CALCS2!A22:B29,2,FALSE),IF('PLACED IN SERVICE PHASE'!E12=\"New Construction High-Rise\",VLOOKUP('PLACED IN SERVICE PHASE'!E71,CALCS2!A22:B29,2,FALSE),0))","v":0}]
[]
["REHAB CALC"]
[]
[{"$f":"IF('PLACED IN SERVICE PHASE'!E92=0,0,('PLACED IN SERVICE PHASE'!E91-'PLACED IN SERVICE PHASE'!E92)/'PLACED IN SERVICE PHASE'!E91)","v":0},"Percent improvement (low-rise)",null,null,null,null,{"$f":"IF('PLACED IN SERVICE PHASE'!E114=0,0,('PLACED IN SERVICE PHASE'!E113-'PLACED IN SERVICE PHASE'!E114)/'PLACED IN SERVICE PHASE'!E113)","v":0},"Percent improvement (high-rise)"]
[{"$f":"A35","v":0},null,null,null,null,null,{"$f":"G35","v":0}]
[0,0]
[0.15,3]
[0.2,5]
[0.25,7]
[0.3,10]
[]
["POINTS:",{"$f":"IF('PLACED IN SERVICE PHASE'!E12=\"Rehab Low-Rise\",INDEX(B37:B41,MATCH(A35,A37:A41,1)),IF('PLACED IN SERVICE PHASE'!E12=\"Rehab High-Rise\",INDEX(B37:B41,MATCH(G35,A37:A41,1))))","v":false}]
["REHAB EXTRA POINTS:"]
[{"$f":"IF('PLACED IN SERVICE PHASE'!C119=\"None of the above\",0,3)","v":3}]
[{"$f":"IF('PLACED IN SERVICE PHASE'!C122=\"No\",0,3)","v":3}]
[{"$f":"IF('PLACED IN SERVICE PHASE'!C128=\"No\",0,3)","v":3}]
[{"$f":"SUM(A45:A47)","v":9},"TOTAL"]

{"sheet":"Min. Construction+CAS+CALGreen","index":5,"n_rows":91,"n_cols":7,"rows_kept":91,"cut":false,"hidden":false,"merged":[[3,2,3,3],[3,5,3,6],[88,1,88,6],[90,1,90,2],[90,3,90,6],[54,1,54,4],[58,1,58,4],[62,1,62,4],[74,1,74,4],[80,1,80,4],[84,1,84,4],[1,1,1,6],[47,1,47,4],[5,2,5,3],[7,1,7,6],[8,1,8,6],[10,1,10,4],[24,1,24,4],[28,1,28,6],[29,1,29,4],[34,1,34,4],[39,1,39,4],[43,1,43,4],[4,2,4,3],[4,5,4,6],[2,2,2,3],[2,5,2,6]]}
[]
[null,"TCAC Sustainable Building Methods Worksheet - Minimum Construction Standards, CAS, and CALGreen Checklist"]
[null,"Building Name:",{"$f":"'PLACED IN SERVICE PHASE'!C3","v":0},null,"Building Address:",{"$f":"'PLACED IN SERVICE PHASE'!F3","v":0}]
[null,"Verifier Name and Company:",null,null,"Verifier Company:"]
[null,"Verifier GreenPoint Rater or LEED for Homes Green Rater ID #:",null,null,"Verifier HERS Whole House Rater ID #:"]
[null,"Verifier Phone # and E-mail:",null,null,"Application Date:",null,{"$f":"'Instructions and FAQs'!B3","v":"v 1.3"}]
[]
[null,"Worksheet instructions: Please ensure that excel macros are enabled.  All projects, including non-competitive projects, must meet the minimum construction standards , as outlined in Section 10325(f)(7) of the TCAC regulations.   Complete CALGreen Compliance is required for all New Construction projects, and on a measure-by-measure basis for all Rehabilitation projects.  The CALGreen verifier (a HERS II Rater, Multifamily GreenPoint Rater, or LEED for Homes Green Rater) will indicate whether each specific CALGreen requirement is met, unmet, or not applicable, and provide notes on how the building has met each requirement.  The verifier should keep all verification documentation in the case that it is requested by TCAC.  Note that while this worksheet provides a summary of all mandatory measures required by TCAC, the verifier should always refer to the complete CALGreen code documentation for complete descriptions of all measures.  Please fill out all fields, marking fields that do not apply to your specific project with an \"N/A.\""]
[null,"Documentation of compliance shall include, but is not limited to, construction documents,  plans, specifications,  builder or installer certification, inspection reports, or other methods acceptable to the local enforcing agency.  Other specific documentation  or special inspections  necessary to verify compliance are specified in appropriate sections of CALGreen. Referenced worksheets and full CALGreen text can be found at:"]
[null,"http://www.hcd.ca.gov/CALGreen.html"]
[null,"TCAC MINIMUM CONSTRUCTION STANDARDS"]
[null,"REGULATION SECTION","MEASURE NAME","REQUIREMENTS","VERIFICATION METHOD","RESULTS OF VERIFICATION","VERIFIER NOTES"]
[]
[null,"10325(7)(A)","Energy Efficiency","New construction buildings shall be thirty percent (30%) better\nthan the 2008 Energy Efficiency Standards (California Code of Regulations, Part 6 of Title 24) including heating, cooling, fan energy, and water heating but not the following end uses: lighting, plug load, appliances, or process energy. Alternatively, new construction buildings may meet the 20 percent (20%) Zero Net Energy (ZNE) standard established in Section 10325(c)(6)(B)(ii). All rehabilitated buildings shall have improved energy efficiency above the modeled energy consumption of the building(s) based on existing conditions documented using the Sustainable Building Method Workbook’s CTCAC Existing Multifamily Assessment Protocols and reported using the CTCAC Existing Multifamily Assessment Report template. Rehabilitated buildings shall document at least a 10% post-rehabilitation improvement over existing conditions energy efficiency achieved for each building. In the case of projects in which energy efficiency improvements have been completed within two years prior to the application date pursuant to a public or regulated utility program that established existing conditions of the systems being\nreplaced using a HERS Rater, the applicant may include the existing conditions of those systems prior to the improvements. Furthermore, all applicants must submit a completed Sustainable Building Method Workbook with their preliminary reservation application unless they are not seeking competitive points under Section 10325(c)(6)(B),(E), or (G), and are developing a project in accordance with the minimum requirements of Leadership in Energy & Environmental Design (LEED) or GreenPoint Rated Program. ","The minimum documentation required for these projects shall be:\n- New Construction Low-Rise: CF1-R and .Bld or .mp8 file showing a minimum thirty percent (30%) better than the 2008 Energy Efficiency  Standards (California Code of Regulations, Part 6 of Title 24) including heating, cooling, fan energy, and water heating but not the following end uses: lighting, plug load, appliances, or process energy OR CUAC showing a minimum 20% towards ZNE.\n- New Construction High-Rise: PERF 1C and .Bld file showing a minimum thirty percent (30%) better than the 2008 Energy Efficiency Standards (California Code of Regulations, Part 6 of Title 24) including heating, cooling, fan energy, pumps, and water heating but not the following end uses: lighting, plug load, appliances, and process energy OR CUAC showing a minimum 20% towards ZNE.\n- Rehabilitation Projects (low and high-rise): ECON-2(s) and .bld file(s) showing a minimum of 10% post-rehabilitation energy efficiency improvement over existing  conditions achieved.","Please Select"]
[null,"10325(7)(B)","CALGreen Compliance","New construction buildings of four (4) or more habitable stories shall meet the mandatory provisions of the CALGreen Code (Title 24, Part 11 of the California Code of Regulations). All rehabilitation projects, including rehabilitation projects of four (4) or more habitable stories, are required to meet the mandatory provisions of the CALGreen Code for any building product or system being replaced as part of the scope of work. ","Complete the CALGreen worksheet, below.","Please Select"]
[null,"10325(7)(C)","Landscaping","A variety of plant and tree species that require low water use shall be provided in sufficient quantities based on landscaping practices in the general market area and low maintenance needs. Projects shall follow the requirements of the state Model Water Efficient Landscape Ordinance (http://www.water.ca.gov/wateruseefficiency/landscapeordinance/) unless a local landscape ordinance has been determined to be at least as stringent as the current model ordinance. \n","Contractor to provide documentation that  landscaping plans, irrigation controller installed as part of the rehabilitation scope of work and  certification of compliance with  State’s Model Water Efficient Landscape Ordinance (Title 23, California Code of Regulations, Section 490 et seq.) or local landscape ordinance that has been determined to be at least as stringent as the current model ordinance.","Please Select"]
[null,"10325(7)(D)","Roofs","Roofing shall carry a three-year subcontractor guarantee and at least a 20-year manufacturer’s warranty. ","Contractor to provide documentation of subcontractor guarantee and manufacturer's warranty for roofing installed.","Please Select"]
[null,"10325(7)(E)","Exterior doors","Insulated or solid core, flush, paint or stain grade exterior doors shall be made of metal clad hardwood faces, or fiberglass faces, with a standard one-year guarantee and all six sides factory primed. ","Contractor to provide cutsheets showing compliance with this measure and invoices or bills of lading for exterior doors installed as part of the scope of work .  Verifier will field-verify.","Please Select"]
[null,"10325(7)(F)","Appliances","ENERGY STAR rated appliances, including but not limited to, refrigerators, dishwashers, and clothes washers shall be installed when such appliances are provided or replaced within Low-Income Units and/or in on-site community facilities unless waived by the Executive Director. \n","Contractor to provide cutsheets showing compliance with this measure and invoices or bills of lading for appliances installed as part of the scope of work .  Verifier will field-verify.","Please Select"]
[null,"10325(7)(G)","Window Coverings","Window coverings shall be provided and may include fire retardant drapes or blinds. ","Contractor to provide cutsheets showing compliance with this measure and invoices or bills of lading for window coverings installed as part of the scope of work .  Verifier will field-verify.","Please Select"]
[null,"10325(7)(H)","Water Heater","For units with individual tank-type water heaters, minimum capacities are to be 30 gallons for one- and two-bedroom units and 40 gallons for three-bedroom units or larger. ","Contractor to provide cutsheets showing compliance with the provisions of this measure for all tank-type water heaters.  Verifier will field-verify.","Please Select"]
[null,"10325(7)(I)","Floor coverings","A hard, water resistant, cleanable surface shall be required for all \nkitchen and bath areas. Carpet complying with U.S. Department of Housing and \nUrban Development/Federal Housing Administration UM44D, or alternatively, cork, \nbamboo, linoleum, or hardwood floors shall be provided in all other floor spaces \nunless this requirement is specifically waived by the Executive Director. ","Contractor to provide cutsheets showing compliance with the provisions of this measure and invoices or bills of lading for  all floor coverings installed as part of the scope of work.  Verifier will field-verify.","Please Select"]
[null,"10325(7)(J)","Use of Low Volatile Organic Compound (VOC) paints and stains"," (Non-flat: 150 g/l or less, Flat: 50 g/l or less) for all interior surfaces where paints and stains are applied. ","Documentation of VOC levels of product and invoice or equivalent to verify installed product. Sample documentation (PC 1 - PC 3) is available here.","Please Select"]
[null,"10325(7)(K)","Fiberglass Insulation","All fiberglass-based insulation shall meet the Greenguard Emission Criteria for Children and Schools\n(http://greenguard.org/en/CertificationPrograms/CertificationPrograms_childrenSch ools.aspx).","Contractor to provide cutsheets showing compliance with the provisions of this measure and invoices or bills of lading for  all insulation installed as part of the scope of work.  Verifier will field-verify.","Please Select"]
[null,"COMBUSTION APPLIANCE SAFETY (CAS)"]
[null,"REGULATION SECTION","MEASURE NAME","REQUIREMENTS","VERIFICATION METHOD","RESULTS OF VERIFICATION","VERIFIER NOTES"]
[]
[null,"Required per TCAC Existing Multifamily Assessment Protocols","Combustion Appliance Safety Testing","For all rehabilitation projects, a Combustion Appliance Safety Test shall be conducted by a certified Building Performance Institute (BPI) Building Analyst. For test out or Placed-In-Service Phase, all units with combustion appliances that are affected by the scope of work must be tested at the completion of work. If a combustion appliance fails according to MF HERCC Combustion Safety Protocols and BPI Building Analyst Technical Standards, the issue must be corrected at Placed in Service Phase.  Test out results submitted at Placed in Service must show that all tested units pass according to the Protocols and all Action Levels are addressed.  Please reference the TCAC Existing Multifamily Assessment Protocols for more in depth information on Combustion Appliance Safety Testing.\n\nPlease note any combustion safety issues and their location in the \"Verifier Notes\" section and list the steps used to mitigate the combustion safety issues.","Building Performance Institute (BPI) Building Analyst shall document  test results using the TCAC Combustion Appliance Safety worksheet (found here) or equivalent.  All combustion safety testing issues shall be noted under \"Verifier Notes.\"","Please Select"]
[null,"CALGREEN MEASURES"]
[null,"Division 4.1 - PLANNING AND DESIGN (SITE DEVELOPMENT)"]
[null,"SECTION","MEASURE NAME","REQUIREMENTS","VERIFICATION METHOD","RESULTS OF VERIFICATION","VERIFIER NOTES"]
[]
[null,"4.106.2","Storm Water Drainage and Retention During Construction","Projects which disturb less than one acre of soil and are not part of a larger common plan of development  shall manage storm water drainage during construction to prevent flooding of adjacent property, prevent erosion and retain soil runoff on site.  One or more of the following measures shall be implemented:\n\n1. Retention basin sized to retain storm water on site\n2. Installation of barrier system, wattle or other method to filter water prior to entry into public drainage system or other collection point\n3. Compliance with local storm water management ordinance","Verifier will conduct field verification of installation of storm water control measures or complete verification method stipulated by enforcing agency. ","Please Select"]
[null,"4.106.3","Grading and Paving","Construction plans shall indicate how the site grading or drainage system will manage all surface water flows to keep water from entering buildings.\n\nNEW EXCEPTION: Revision provides an exception for additions and alterations not altering the drainage path.\n\nExamples of acceptable methods include but are not limited to: Sloped ground; Roof overhangs; Swales; Berms; Water collection and disposal systems; French drains; Water retention gardens; Pervious paving systems with subsurface detention, drainage, and infiltration capacities; and Other measures which keep surface water away from buildings and aid in groundwater recharge.","Verifier will review building plans for design and conduct field verification for installation of storm water control measures or complete verification method stipulated by enforcing agency. ","Please Select"]
[null,"Division 4.3 - WATER EFFICIENCY AND CONSERVATION (INDOOR WATER USE)"]
[null,"SECTION","MEASURE NAME","REQUIREMENTS","VERIFICATION METHOD","RESULTS OF VERIFICATION","VERIFIER NOTES"]
[]
[null,"4.303.1",null,"Plumbing fixtures and fittings shall comply with the following: \n4.303.1.1      Water Closets: ≤ 1.28 gal/flush\n4.303.1.2      Urinals: ≤ 0.5 gal/flush\n4.303.1.3.1   Single Showerheads: ≤ 2.0 gpm @ 80 psi\n4.303.1.3.2   Multiple Showerheads: combined flow rate of all showerheads and/or other shower outlets controlled by a single valve shall not exceed 2.0 gpm @ 80 psi or only one shower outlet is to be in operation at a time\n4.303.1.4.1   Residential Lavatory Faucets: ≤ 1.5 gpm @ 60 psi\n4.303.1.4.2   Lavatory Faucets in Public Use Area:  ≤ .5 gpm @ 60 psi\n4.303.1.4.3   Metering Faucets: ≤ 0.25 gallons per cycle\n4.303.1.4.4   Kitchen Faucets: ≤ 1.8 gpm @ 60 psi; temporary increase to 2.2 gpm allowed but shall default to 1.8 gpm","Verifier will collect cut sheets and complete field verification of installed fixtures.","Please Select"]
[null,"4.303.2","Standards for Plumbing Fixtures and Fittings","Specifies that plumbing fixtures and fittings shall be installed in accordance with the California Plumbing Code.  \n\nRelocates provisions for multiple showerheads to Section 4.303.1.3.2.","Verifier will collect cut sheets and complete field verification of installed fixtures.","Please Select"]
[null,"Division 4.3 - WATER EFFICIENCY AND CONSERVATION (OUTDOOR  WATER USE)"]
[null,"SECTION","MEASURE NAME","REQUIREMENTS","VERIFICATION METHOD","RESULTS OF VERIFICATION","VERIFIER NOTES"]
[]
[null,"4.304.1","Irrigation Controllers","Automatic irrigation system controllers for landscaping  provided by the builder and installed at the time of final inspection shall comply with the following: \n\n1. Controllers shall be weather- or soil moisture-based controllers that automatically  adjust irrigation in response to changes in plants' watering needs as weather or soil conditions change.\n\n2. Weather-based controllers without integral rain sensors or communication systems that account for rainfall shall have a separate wired or wireless rain sensor which connects or communicates  with the controller(s).","Documentation that irrigation controller meets requirements.  Field verification of installed controllers should be completed. ","Please Select"]
[null,"Division 4.4 - MATERIAL CONSERVATION & RESOURCE EFFICIENCY (ENHANCED  DURABILITY  & REDUCED MAINTENANCE)"]
[null,"SECTION","MEASURE NAME","REQUIREMENTS","VERIFICATION METHOD","RESULTS OF VERIFICATION","VERIFIER NOTES"]
[]
[null,"4.406.1","Rodent Proofing","Specifies the areas needing rodent proofing are sole/bottom plates.\n\nAnnular spaces around pipes, electric cables, conduits, or other openings in sole/bottom plates at exterior walls shall be closed with cement mortar, concrete masonry or a similar method acceptable to the enforcing agency to present passage of rodents.","Field verification of sealed penetrations.","Please Select"]
[null,"Division 4.4 - MATERIAL CONSERVATION & RESOURCE EFFICIENCY (CONSTRUCTION WASTE REDUCTION, DISPOSAL & RECYCLING)"]
[null,"SECTION","MEASURE NAME","REQUIREMENTS","VERIFICATION METHOD","RESULTS OF VERIFICATION","VERIFIER NOTES"]
[]
[null,"4.408.1","Construction  Waste Reduction of at least 50%","Recycle and/or salvage for reuse a minimum of 50% of the nonhazardous  construction and demolition debris in accordance with 4.408.2, 4.408.3, or 4.408.4, or meet a more stringent local construction and demolition waste management  ordinance. \n\nExceptions:\n1.  Excavated soil and land-clearing  debris.\n2.  Alternate waste reduction methods developed by working with local enforcing agencies if diversion or recycle facilities capable of compliance with this item do not exist or are not located reasonably close to jobsite. \n3.  The enforcing agency may make exceptions to the requirements of this section when isolated jobsites are located in areas beyond the haul boundaries of the diversion facility.","Waste Management form indicating waste generated and diverted.  Demonstrated diversion rate must be 50% or greater.  Sample forms provided by HCD can be found here.\n","Please Select"]
[null,"4.408.2","Construction  Waste Management  Plan","Submit a construction waste management plan that complies ALL of the following items.  The plan shall be updated as necessary and shall be available during construction for examination.\n\n1. Identify the materials to be diverted from disposal by recycling, reuse on the project or salvage for future use or sale.\n2. Specify if materials will be sorted on-site or mixed for transportation to a diversion facility.\n3. Identify the diversion facility where the material collected will be taken.\n4. Identify construction methods employed to reduce the amount of waste generated.\n5. Specify that the amount of materials diverted shall be calculated by weight or volume, but not by both.  ","Waste management plan or construction and demolition form documenting anticipated waste generation and diversion.  Sample forms provided by HCD can be found here.","Please Select"]
[null,"4.408.3","Waste Management Company","Use a  waste management company approved by the enforcing agency which can provide verifiable documentation that the percentage of construction and demolition waste material diverted  from the landfill complies with Section 4.408.1.","Waste management plan or construction and demolition form documenting anticipated waste generation and diversion.  Sample forms provided by HCD can be found here.","Please Select"]
[null,"4.408.4\n\n4.408.4.1","Waste Stream Reduction Alternative","4.408.4  Generate a total combined weight of construction and demolition waste disposed in landfills that is equal to or less than 4 pounds per square-foot of the building area.\nAdds Section 4.408.4.1 to acknowledge a high-rise residential compliance alternative.\n\n4.408.4.1 [HR+]  Generate a total combined weight of construction and demolition waste disposed in landfills that is equal to or less than 2 pounds per square-foot of the building area.","Waste management plan or construction and demolition form documenting anticipated waste generation and diversion.  Sample forms provided by HCD can be found here.","Please Select"]
[null,"Division 4.4 - MATERIAL CONSERVATION & RESOURCE EFFICIENCY (BUILDING MAINTENANCE & OPERATION)"]
[null,"SECTION","MEASURE NAME","REQUIREMENTS","VERIFICATION METHOD","RESULTS OF VERIFICATION","VERIFIER NOTES"]
[]
[null,"4.410.1","Operation and Maintenance  Manual","At the time of final inspection, a manual, compact disc, web-based reference or other media acceptable to the enforcing agency which covers 10 specific subject areas shall be placed in the building.\n1. Directions to homeowner or occupant that the manual shall remain with the building throughout the lifecycle of the structure. \n2. Operation and maintenances instructions for: \n       a. Equipment and appliances, including energy and water-saving devices and systems, HVAC systems, water-heating systems, lighting and other major appliances and electronic equipment.\n       b. Roof and yard drainage, including gutters and downspouts.\n       c. Space conditioning systems, including condensers, condensate drains and air  filters\n       d. Landscape irrigation systems\n       e. Water reuse systems\n3. Information on ways to optimize water and energy use including household recycling opportunities and water/ energy reduction opportunities through utilities or recycling programs\n4. Information on routine maintenance to maintain integrity of building interior and exterior including painting and caulking, grading  etc. \n5. Instructions for keeping gutters clean and directing downspouts to divert water away (at least 5 feet) from the home and importance of roof and yard drainage\n6. Instructions on the positive impacts of an interior relative humidity between 30–60 percent and what methods an occupant may use to maintain the relative humidity level in that range.\n7. Information on public transportation/ carpooling in the area\n8. Information on statewide solar incentive programs available\n9. Instructions on water-conserving landscape and irrigation design and controllers for conserving water. \n10. Copy of all special inspection verifications required by the Authority Having Jurisdiction. \n","Operation and Maintenance Manual or Homeowner Manual shall be reviewed and compared to list of required components for compliance with this measure.","Please Select"]
[null,"Division 4.5 - ENVIRONMENTAL QUALITY (FIREPLACES)"]
[null,"SECTION","MEASURE NAME","REQUIREMENTS","VERIFICATION METHOD","RESULTS OF VERIFICATION","VERIFIER NOTES"]
[]
[null,"4.503.1","Fireplaces","Any installed gas fireplace shall be a direct-vent sealed-combustion type.  Any installed woodstove or pellet stove shall comply with U.S. EPA Phase II emission limits where applicable.   Woodstoves,  pellet stoves and fireplaces shall also comply with all applicable local ordinances.\n\nThe fireplace must be consistent with California Energy Code, Part6. Examples include having a closeable metal or glass doors covering the entire opening of the firebox, a 6 sq. in. combustion air duct from the outside, and equipped with a readily accessible, operable, and tight-fitting damper or combustion-air control device.","Field verification of installed fireplace and documentation of compliance with US EPA Phase II emissions if appropriate. ","Please Select"]
[null,"Division 4.5 - ENVIRONMENTAL QUALITY (POLLUTANT  CONTROL)"]
[null,"SECTION","MEASURE NAME","REQUIREMENTS","VERIFICATION METHOD","RESULTS OF VERIFICATION","VERIFIER NOTES"]
[]
[null,"4.504.1","Covering of Duct Openings and Protection of Mechanical  Equipment During Construction","At the time of rough installation, during storage on the construction site and until final startup of the heating and cooling equipment, all duct and other related air distribution component openings shall be covered.  Tape, plastic, sheet metal or other methods acceptable to the enforcing agency to reduce the amount of water, dust or debris entering the system may be used.","Field verification of protected ducts throughout construction process. ","Please Select"]
[null,"4.504.2.1","Adhesives,  Sealants and Caulks","Adhesives, sealants and caulks used on the project shall meet the requirements  of the following standards unless more stringent local or regional air pollution or air quality management  district rules apply:\n\n1. Adhesives, adhesive bonding primers, adhesive primers, sealants, sealant primers, and caulks shall comply with local or regional air pollution control or air quality management  district rules where applicable, or SCAQMD Rule 1168 (www.aqmd.gov/rules/reg/reg11/r1168.pdf).  VOC limits, as shown in Tables 4.504.1 or 4.504.2 (see right) as applicable.    Such products shall also comply with Rule 1168 prohibition on the use of certain toxic compounds  (chloroform,  ethylene dichloride, methylene chloride, perchloroethylene and trichloroethylene), except for aerosol products as specified in Subsection 2 below. \n\n2. Aerosol adhesives, and smaller unit sizes of adhesives, and sealant or caulking compounds  (in units of product, less packaging, which do not weigh more than 1 pound and do not consist of more than 16 fluid ounces) shall comply with statewide VOC standards and other requirements, including prohibitions  on use of certain toxic compounds,  of California Code of Regulations,  Title 17, commencing  with Section 94507.","Documentation of VOC levels of product and invoice or equivalent to verify installed product. Sample documentation (PC 1 - PC 3) is available here.","Please Select"]
[null,"4.504.2.2","Paints and Coatings","Architectural  paints and coatings shall comply with VOC limits in Table 1 of the Air Resources Board Architectural  Suggested Control Measure, as shown in Table 4.504.3 (see right) unless more stringent local limits apply.  The VOC content limit  for coatings that do not meet the definitions for the specialty coatings categories listed in Table 4.504.3, shall be determined by classifying the coating as Flat, Nonflat, or Nonflat-High Gloss coating, based on its gloss, as defined in subsections  4.21, 4.36, and 4.37, of the 2007 California Air Resources Board, Suggested Control Measure, and the corresponding  Flat, Nonflat, or Nonflat-High Gloss VOC limit in Table 4.504.3 shall apply. As a reference the threshold for Flat is 50 g/l and  the threshold for Nonflat is 110 g/l.","Documentation of VOC levels of product and invoice. Sample documentation (PC 5 - PC 7) is available here.","Please Select"]
[null,"4.504.2.3","Aerosol Paints and Coatings","Aerosol paints and coatings shall meet the Product-Weighted MIR Limits for ROC in Section 94522(a)(3) and other requirements, including prohibitions on use of certain toxic compounds and ozone depleting substances, in Section 94522©(2) and (d)(2) of the California Code of Regulations, Title 17, commencing with Section 94520; and in areas under the jurisdiction of the Bay Area Quality Management District shall additionally comply with the percent VOC by weight of product limits of Regulation 8, Rule 49.","Documentation of VOC levels of product and invoice. Sample documentation (PC 5 - PC 7) is available here.","Please Select"]
[null,"4.504.3","Carpet Systems","All carpet installed in the building interior shall meet the testing and product requirements  of one of the following:\n\n1. Carpet and Rug Institute's Green Label Plus Program\n2. California Department  of Public Health Standard Method for the Testing and Evaluation of Volatile Organic Chemical Emissions from Indoor Sources Using Environmental  Chambers, Version 1.1, February 2010 (also known as Specification 01350.)\n3. NSF/ANSI 140 at the Gold level\n4. Scientific Certifications  Systems Indoor Advantage™  Gold","Documentation of certification of product and invoice or equivalent to verify installed product.  Sample documentation (PC 9 - PC 11) is available here.","Please Select"]
[null,"4.504.3.1","Carpet Cushion","All carpet cushion installed in the building interior shall meet the requirements  of the Carpet and Rug Institute Green Label Program.","Documentation of certification of product and invoice or equivalent to verify installed product.  Sample documentation (PC 9 - PC 11) is available here.","Please Select"]
[null,"4.504.3.2","Carpet Adhesive","All carpet adhesives shall meet the requirements  of Table 4.504.1 (see right).","Documentation of VOC levels of product and invoice or equivalent to verify installed product. Sample documentation (PC 1 - PC 3) is available here.","Please Select"]
[null,"4.504.4","Resilient Flooring Systems","Where resilient flooring is installed, at least 50% of floor area receiving resilient flooring shall comply with one or more of the following:\n\n1. VOC emission limits defined in the Collaborative  for High Performance  Schools (CHPS) High Performance  Products Database.\n2. Products compliant with CHPS criteria certified under the Greenguard  Children & Schools program.\n3. Certification under the Resilient Floor Covering Institute (RFCI) FloorScore program.\n4. Meet the California Department  of Public Health, “Standard Method for the Testing and Evaluation of Volatile Organic Chemical Emissions from Indoor Sources Using Environmental  Chambers”,  Version 1.1, February 2010 (also known as Specification 01350.)","Documentation of certification of product and invoice or equivalent to verify installed product.  Sample documentation (PC 9 - PC 11) is available here.","Please Select"]
[null,"4.504.5","Composite Wood Products","Hardwood plywood, particleboard  and medium density fiberboard composite wood products used on the interior or exterior of the building shall meet the requirements  for formaldehyde  as specified in Air Resources Board's Air Toxics Control Measure for Composite Wood (17 CCR 93120 et. seq.), by or before the dates specified in those sections shown in Table 4.504.5 (see right).\n\nDefinition of Composite Wood Products: Composite wood products include hardwood plywood, particleboard,  and medium density fiberboard. \"Composite wood products\" do not include hardboard, structural plywood, structural panels, structural composite lumber, oriented strand board, glued laminated timber, prefabricated  wood I-joists, or finger-jointed  lumber, all as specified in CCR, Title 17, Section 93120.1(a).","Documentation of certification of product and invoice or equivalent to verify installed product.  Sample documentation (PC 13 - PC 15) is available here.","Please Select"]
[null,"Division 4.5 - ENVIRONMENTAL QUALITY (INTERIOR MOISTURE  CONTROL)"]
[null,"SECTION","MEASURE NAME","REQUIREMENTS","VERIFICATION METHOD","RESULTS OF VERIFICATION","VERIFIER NOTES"]
[]
[null,"4.505.2","Concrete Slab Foundations","Concrete slab foundations or concrete slab-on-ground floors required to have a vapor retarder by the California Building Code, Chapter 19, or the California Residential Code, Chapter 5, respectively, shall also comply with this section.","Plan review of plans demonstrating vapor retarder to be installed and field verification of installed vapor barrier.   Example of documentation can be found here.","Please Select"]
[null,"4.505.2.1","Capillary Break","A capillary break shall be installed in compliance with at least one of the following:\n\n1. Install a vapor retarder in contact with concrete and in contact with a 4-inch thick base of ½ inch or larger aggregate. The concrete mix design shall be designed to address bleeding, shrinkage, and curing. The vapor barrier must overlap by a recommended 6 inches and taped with water resistant tape. For additional information,  see American Concrete Institute, ACI 302.2R-06.\n2. Other equivalent methods approved by the enforcing agency. \n3. A slab design specified by a licensed design professional.\n\nNote: Section 4.505.2 states Concrete slab foundations  required to have a vapor retarder by the California Building Code, Chapter 19; or the California Residential Code, Chapter 5, shall also comply with this section.","Plan review of plans demonstrating vapor retarder to be installed and field verification of installed vapor barrier.   Example of documentation can be found here.","Please Select"]
[null,"4.505.3","Moisture Content of Building Materials","Building materials with visible signs of water damage shall not be installed.  Wall and floor framing shall not be enclosed when the framing members exceed 19% moisture content.  Moisture content shall be verified in compliance with the following:\n1. Moisture content shall be determined with either a probe-type or a contact-type  moisture meter or other equivalent method approved by enforcing agency. \n2. Moisture readings shall be taken at a point 2 feet (610 mm) to 4 feet (1219 mm) from the grade-stamped end of each piece to be verified.\n3. At least three random moisture readings shall be performed on wall and floor framing with documentation  acceptable to the enforcing agency provided at the time of approval to enclose the wall and floor framing.","A field verification of compliance.  Builder or other responsible professional will demonstrate compliance.  Example of documentation can be found here.\n","Please Select"]
[null,"Division 4.5 - ENVIRONMENTAL QUALITY (INDOOR AIR QUALITY & EXHAUST)"]
[null,"SECTION","MEASURE NAME","REQUIREMENTS","VERIFICATION METHOD","RESULTS OF VERIFICATION","VERIFIER NOTES"]
[]
[null,"4.506.1","Bathroom Exhaust Fans","Mechanical exhaust fans which exhaust directly from bathrooms shall comply with the following. Note: For the purposes of this section a bathroom is a room which contains a bathtub, shower, or tub/shower combination.   Fans are required in each bathroom.\n\n1. Fans shall be ENERGY STAR compliant and be ducted to terminate outside the building.\n2. Unless functioning as a component of a whole house ventilation system, fans must be controlled by a humidistat or humidity control device. Humidistat or humidity controls shall be capable of adjustment between a relative humidity range of 50% or less to a maximum of 80%. The humidity control does not have to be integral (i.e. built in).","Documentation of  ENERGY STAR rating  and humidistat control may be accomplished through field verification or verification of specification of installed model number. ","Please Select"]
[null,"Division 4.5 - ENVIRONMENTAL QUALITY (ENVIRONMENTAL COMFORT)"]
[null,"SECTION","MEASURE NAME","REQUIREMENTS","VERIFICATION METHOD","RESULTS OF VERIFICATION","VERIFIER NOTES"]
[]
[null,"4.507.2","Heating and Air Conditioning  System Design","Heating and air conditioning  systems shall be sized, designed, and equipment selected using the following methods. Exception:   Use of alternate design temperatures  necessary to ensure the system functions are acceptable. \n1. The heat loss and heat gain is established according to ANSI/ACCA  2 Manual J - 2004 (Residential Load Calculation),  ASHRAE handbooks or other equivalent design software or methods.\n2. Duct systems are sized according to ANSI/ACCA  1 Manual D - 2009 (Residential Duct Systems), ASHRAE handbooks or other equivalent design software or methods.\n3. Select heating and cooling equipment according to ANSI/ACCA  3 Manual S - 2004 (Residential Equipment Selection) or other equivalent design software or methods.","Documentation in the form of building-specific calculations and mechanical plans incorporating requirements of Manuals J, D, and S. Statement from HVAC designer indicating compliance with this measure. ","Please Select"]
[null,"By filling out this document and writing my name below, I verify that the information provided above is accurate, to the best of my knowledge.   I have reviewed the measures listed above in every unit or completed allowable sampling.  The above measures have been implemented to the full extent of CALGreen as outlined in the California Green Building Code. If necessary during any audit process, I can provide backup documentation for the measure(s) claimed above. "]
[]
[null,"Verifier Name:"]

{"sheet":"ZNE Calculation","index":6,"n_rows":24,"n_cols":15,"rows_kept":24,"cut":false,"hidden":false,"merged":[[9,1,9,2],[1,1,1,14],[2,1,2,2],[4,1,4,2],[5,1,5,2],[8,1,8,2],[12,1,12,2],[13,1,13,2],[16,1,16,2],[16,16,16,18],[17,1,17,2],[17,16,17,17],[19,7,19,13],[20,7,20,13],[21,7,21,13],[22,7,22,13],[23,10,23,13]]}
[]
[null,"Residential Energy Use Summary for TCAC Zero Net Energy Calculations "]
[null,"Type of Residential Energy Use",null,"Space Heating","Space Cooling","Domestic Hot Water","Plug Loads","Lighting","Refrigerators","Cooking","Dishwashers","Laundry Washer","Laundry Dryer","Individual Apartment's Annual Consumption ","Combined Apartments' Annual Consumption "]
[null,"Number of One (1) Bedroom Units",0]
[null,"Electricity Consumption (kWh/year)",null,null,null,null,null,null,null,null,null,null,null,{"$f":"SUM(D5:M5)","v":0},{"$f":"C4*N5","v":0}]
[null,"Gas Consumption (kBTU/year)",null,null,null,null,null,null,null,null,null,null,null,{"$f":"SUM(D6:M6)","v":0},{"$f":"C4*N6","v":0}]
[]
[null,"Number of Two (2) Bedroom Units",0," ",null,null,null,null,null," ",null,null,null,null," "]
[null,"Electricity Consumption (kWh/year)",null,null,null,null,null,null,null,null,null,null,null,{"$f":"SUM(D9:M9)","v":0},{"$f":"C8*N9","v":0}]
[null,"Gas Consumption (kBTU/year)",null,null,null,null,null,null,null,null,null,null,null,{"$f":"SUM(D10:M10)","v":0},{"$f":"C8*N10","v":0}]
[]
[null,"Number of Three (3) Bedroom Units",0]
[null,"Electricity Consumption (kWh/year)",null,null,null,null,null,null,null,null,null,null,null,{"$f":"SUM(D13:M13)","v":0},{"$f":"C12*N13","v":0}]
[null,"Gas Consumption (kBTU/year)",null,null,null,null,null,null,null,null,null,null,null,{"$f":"SUM(D14:M14)","v":0},{"$f":"C12*N14","v":0}]
[]
[null,"Number of Four (4) Bedroom Units",0]
[null,"Electricity Consumption (kWh/year)",null,null,null,null,null,null,null,null,null,null,null,{"$f":"SUM(D17:M17)","v":0},{"$f":"C16*N17","v":0}]
[null,"Gas Consumption (kBTU/year)",null,null,null,null,null,null,null,null,null,null,null,{"$f":"SUM(D18:M18)","v":0},{"$f":"C16*N18","v":0}]
[]
[null,null,null,null,null,null,null,"Total Annual Residential Electricity Consumption (kWh)",null,null,null,null,null,null,{"$f":"O5+O9+O13+O17","v":0}]
[null,null,null,null,null,null,null,"Total Annual Residential Gas Consumption (kBTU)",null,null,null,null,null,null,{"$f":"O18+O14+O10+O6","v":0}]
[null,null,null,null,null,null,null,"Converted Annual Residential Gas Consumption converted from kBTU to kWh (assuming 100,000 kBTU = 29.3 kWh)",null,null,null,null,null,null,{"$f":"O21/29.3","v":0}]
[null,null,null,null,null,null,null,"Total Annual Electricity production of the Photovoltaic Solar Array (kWh)"]
[null,null,null,null,null,null,null,null,null,null,"TCAC Zero Net Energy Offset",null,null,null,{"$f":"O23/(O20+O22)","v":{"$error":"#DIV/0!"}}]

{"sheet":"Project Submission Requirements","index":7,"n_rows":71,"n_cols":7,"rows_kept":71,"cut":false,"hidden":false,"merged":[[1,3,1,6],[4,1,6,1],[4,2,6,2],[4,3,6,3],[4,4,5,4],[4,5,5,5],[4,6,6,6],[13,6,18,6],[16,4,17,4],[16,5,17,5],[8,1,12,1],[8,2,12,2],[8,3,12,3],[8,4,10,4],[8,5,10,5],[8,6,12,6],[13,1,18,1],[13,2,18,2],[13,3,18,3],[13,4,15,4],[13,5,15,5],[19,4,19,5],[26,3,26,6],[28,1,35,1],[28,2,35,2],[28,3,35,3],[28,4,31,4],[28,5,31,5],[28,6,35,6],[34,4,35,4],[34,5,35,5],[36,6,42,6],[41,4,42,4],[41,5,42,5],[44,1,53,1],[44,2,53,2],[44,3,53,3],[44,4,48,4],[44,5,48,5],[44,6,53,6],[52,4,53,4],[36,1,42,1],[36,2,42,2],[36,3,42,3],[36,4,38,4],[36,5,38,5],[64,1,64,3],[52,5,53,5],[54,1,63,1],[54,2,63,2],[54,3,63,3],[54,4,57,4],[54,5,57,5],[65,4,65,5],[54,6,63,6],[58,4,59,4],[58,5,59,5],[62,4,63,4],[62,5,63,5]]}
[]
[null,null,null,"Application Phase"]
[null,null,null,"Analysis Software","Submission Documents","Document Descriptions","TCAC Scoring Criteria"]
[null,"New Construction","Low-rise"," Energy Pro or Micropas Residential T-24 compliance *","CF-1R: Certificate of Compliance-Residential and .bld or .mp8 file ","The CF-1R summarizes the minimum energy performance specifications needed for compliance, including the results of the heating and cooling load calculations. The Standards require that a certificate of compliance be included on the plans. CEC approved performance ACM software automatically generates CF-1R forms.","CF1R\nPercent better than standard (T-24)"]
[null,"New Construction","High-Rise","Energy Pro Non-Residential T-24 compliance *","Non-Residential Performance T-24 Form (PERF-1C) and .bld file","The PERF-1C summarizes the minimum energy performance specifications needed for compliance, including the results of the heating and cooling load calculations. The Standards require that a certificate of compliance be included on the plans.  CEC approved performance ACM software automatically generates PERF-1 forms.","PERF-1C\nPercent better than standard (T-24)"]
[]
[null,null,null,null,"Other applicable compliance forms, as needed","Other compliance forms may be required depending upon the specific measures in your project.  Please refer to the Nonresidential Compliance Manual, Appendix A (http://www.energy.ca.gov/2008publications/CEC-400-2008-017/rev1_appendices/NRCM_Appendix_A.pdf)"]
[]
[null,"Rehab","Low-Rise","EnergyPro (Residential Performance)","ECON-2 and .bld file ","ECON-2 summarizes the TDV and the recommended measures.  If a two model approach is taken submission should include 2 ECON-2's and 2 .bld files.  The .bld files are for TCAC QA review purposes.","ECON 2\nimprovement in TDV  (ktbu/sq ft/yr)"]
[]
[]
[null,null,null,null,"TCAC Existing Multifamily Assessment Report","Audit report showing estimated energy consumptions with existing measures and proposed improvements."]
[null,null,null,null,"Project Plans for existing conditions","Documentation showing project title, address, developer, and building plans.  Building plans for existing conditions should have unit and floor plans, elevation views, dimensions and window callouts.  Plans are not required for the proposed condition at this stage."]
[null,"Rehab","High-Rise","EnergyPro (Non-Res Performance) ","ECON-2 and .bld file ","ECON-2 summarizes the TDV and the recommended measures.  If a two model approach is taken submission should include 2 ECON-2's and 2 .bld files.  The .bld files are for TCAC QA review purposes.","ECON 2\nimprovement in TDV  (ktbu/sq ft/yr)"]
[]
[]
[null,null,null,null,"TCAC Existing Multifamily Assessment Report","Audit report showing estimated energy consumptions with existing measures and proposed improvements."]
[]
[null,null,null,null,"Project Plans for existing conditions","Documentation showing project title, address, developer, and building plans.  Building plans for existing conditions should have unit and floor plans, elevation views, dimensions and window callouts.  Plans are not required for the proposed condition at this stage."]
[null,null,null,null,"For All Projects Going through Green Building Rating Programs (Application Phase)"]
[null,null,null,null,"Rating System","Submission Document"]
[null,null,null,null,"GreenPoint Rating ","Initial Green Point Rating Checklist"]
[null,null,null,null,"LEED","Initial LEED Checklist"]
[null,null,null,null,"Enterprise Green Communities","Initial Green Communities Checklist"]
[]
[]
[null,null,null,"As-Built/Placed-in-Service Phase"]
[null,null,null,"Analysis Software","Submission Documents","Document Descriptions","TCAC Scoring Criteria"]
[null,"New Construction","Low-rise","Energy Pro or Micropas Residential T-24 compliance *","\"As-built\" (PIS) CF-1R: Certificate of Compliance-Residential and.bld or .mp8 file","The CF-1R forms at Placed in Service must reflect the (as-built) test-out conditions.  The CF-1R summarizes the minimum energy performance specifications needed for compliance, including the results of the heating and cooling load calculations. The Standards require that a certificate of compliance be included on the plans. CEC-approved performance ACM software automatically generates CF-1R forms.  CF-1R forms must reflect test-out (as-built) conditions. The consultant preparing the \"as-built\" energy model shall meet the minimum qualifications and be responsible for verifying that all the energy efficiency measures have been met, including verification of installation certificates (CF-6R forms) and field verification certificates (CF-4R forms)","CF1R\nPercent better than standard (T-24)"]
[]
[]
[]
[null,null,null,null,"Project Plans","Documentation showing project title, address, developer, and building plans.  Building plans should have unit and floor plans, elevation views, dimensions and window callouts.  Plan set should also include, Mechanical, Electrical, Plumbing, and Landscape plans."]
[null,null,null,null,"Equipment Specifications","Specifications for the installed equipment showing mechanical/HVAC efficiencies (SEER, EER, AFUE, and/or HSPF), duct insulation, window specifications (U-factor and SHGC), and water heater properties (size in gallons, fuel type, and energy factor)."]
[null,null,null,null,"Bills of lading for the appliances","Delivery verification of appliances to the project address.  Invoices specifying the appliances and the project are also acceptable."]
[]
[null,"New Construction","High-Rise","Energy Pro Non-Residential T-24 compliance*","\"As-built\" (PIS) Non-Residential Performance T-24 Form (Perf-1C) and .bld file ","The PERF-1C forms at Placed in Service must reflect the (as-built) test-out conditions.  The Perf-1C summarizes the minimum energy performance specifications needed for compliance, including the results of the heating and cooling load calculations. The Standards require that a certificate of compliance be included on the plans. CEC approved performance ACM software automatically generates PERF-1C forms. The consultant preparing the \"as-built\" energy model shall meet the minimum qualifications and be responsible for verifying that all the energy efficiency measures have been met, including verification of the required acceptance testing forms","Perf-1C\nPercent better than standard (T-24)"]
[]
[]
[null,null,null,null,"Project Plans","Documentation showing project title, address, developer, and building plans.  Building plans should have unit and floor plans, elevation views, dimensions and window callouts.  Plan set should also include, Mechanical, Electrical, Plumbing, and Landscape plans."]
[null,null,null,null,"Equipment Specifications","Specifications for the installed equipment verifying mechanical/HVAC efficiencies (SEER, EER, AFUE, and/or HSPF), duct insulation, window specifications (U-factor and SHGC), and water heater properties (size in gallons, fuel type, and energy factor)."]
[null,null,null,null,"Bills of lading for the appliances","Delivery verification of appliances to the address of the project.  Invoices specifying the appliances and the project are also acceptable."]
[]
[]
[null,"Rehabs","Low-Rise","EnergyPro (Residential Performance)","\"As-built\" (PIS) ECON-2 and.bld file ","ECON-2 summarizes the TDV and the recommended measures.  If a two model approach is taken submission should include 2 ECON-2's and 2 .bld files.  The .bld files are for TCAC QA review purposes.   The ECON-2 forms at Placed in Service must reflect the \"as-built\" test-out conditions.  The consultant preparing the \"as-built\" energy model shall meet the minimum qualifications and be responsible for verifying that all the energy efficiency measures have been met, including verification of installation certificates (CF-6R forms) and field verification certificates (CF-4R forms)","Econ 2\nimprovement in TDV (ktbu/sq ft/yr)"]
[]
[]
[]
[]
[null,null,null,null,"Summary of installed measures & statement of completion","This summary will include the list of all measures that installed and verified and the final total energy savings projections based on test-out conditions."]
[null,null,null,null,"Project Plans","Documentation showing project title, address, developer, and building plans.  Building plans should have unit and floor plans, elevation views, dimensions and window callouts.  Plan set should also include, Mechanical, Electrical, Plumbing, and Landscaping plans."]
[null,null,null,null,"Equipment Specifications","Specifications for the installed equipment verifying mechanical/HVAC efficiencies (SEER, EER, AFUE, and/or HSPF), duct insulation, window specifications (U-factor and SHGC), and water heater properties (size in gallons, fuel type, and energy factor)."]
[null,null,null,null,"Bills of lading for the appliances","Delivery verification of appliances to the address of the project.  Invoices specifying the appliances and the project are also acceptable."]
[]
[null,"Rehabs","High-Rise","EnergyPro (Non-Res Performance)","\"As-built\" (PIS) ECON-2 and.bld file ","ECON-2 summarizes the TDV and the recommended measures.  If a two model approach is taken submission should include 2 ECON-2's and 2 .bld files.  The .bld files are for TCAC QA review purposes.   The ECON-2 forms at Placed in Service must reflect the \"as-built\" test-out conditions.  The consultant preparing the \"as-built\" energy model shall meet the minimum qualifications and be responsible for verifying that all the energy efficiency measures have been met, including verification of installation certificates (CF-6R forms) and field verification certificates (CF-4R forms)","Econ 2\nimprovement in TDV (ktbu/sq ft/yr)"]
[]
[]
[]
[null,null,null,null,"Summary of installed measures & statement of completion","This summary will include the list of all measures that installed and verified and the final total energy savings projections based on test-out conditions."]
[]
[null,null,null,null,"Project Plans","Documentation showing project title, address, developer, and building plans.  Building plans should have unit and floor plans, elevation views, dimensions and window callouts.  Plan set should also include, Mechanical, Electrical, Plumbing, and Landscaping plans."]
[null,null,null,null,"Equipment Specifications","Specifications for the installed equipment verifying mechanical/HVAC efficiencies (SEER, EER, AFUE, and/or HSPF), duct insulation, window specifications (U-factor and SHGC), and water heater properties (size in gallons, fuel type, and energy factor)."]
[null,null,null,null,"Bills of lading for the appliances","Delivery verification of appliances to the address of the project.  Invoices specifying the appliances and the project are also acceptable."]
[]
[null,"All Projects",null,null,"CalGreen","CalGreen Mandatory Measures Checklist","Mandatory Measure Checklist"]
[null,null,null,null,"For All Projects Going through Green Building Rating Programs (Placed in Service Phase)"]
[null,null,null,null,"Rating System","Submission Document"]
[null,null,null,null,"GreenPoint Rating ","Green Point Rating Label"]
[null,null,null,null,"LEED","LEED Label"]
[null,null,null,null,"Enterprise Green Communities","Green Communities Label "]
[null,"* Or other CEC approved compliance program"]

{"sheet":"Rehab Verification Quals Final","index":8,"n_rows":44,"n_cols":5,"rows_kept":44,"cut":false,"hidden":false,"merged":[[16,3,16,4],[2,1,3,1],[2,2,3,2],[2,3,3,3],[2,4,3,4],[4,1,5,1],[4,2,5,2],[4,3,5,3],[5,4,6,4]]}
[]
[null,"Task","New Minimum Qualification","                 Alternative Min. Qualification                                        (Approved by the Executive Director on a case-by-case basis)","Additional Recommended Qualifications for building owner to consider/follow up on"]
[null,"Whole Building Energy Assessment and Recommendations","Must have two of the following certifications:\n- HERS Whole House (HERS II) Rater\n- BPI Multifamily Building Analyst\n- Green Point Rater for Existing Home Multifamily","Alternative Min. Qualification: Meet requirements of CA EMF training petition procedure similar to Build it Green/TRC process; TCAC Executive Director to make final determination/approval.\n\nhttp://builditgreen.org/GPR-prerequisites-eligibility/","Tier 1:  At least a PE, CEM, BPI Multifamily Building Analyst"]
[]
[null,"Energy Modeling","California Association of Building Energy Consultants (CABEC) 2013 Certified Energy Analyst (2013 CEA) (Nonres CEA for HR MF and Res CEA for low-rise MF.) and a HERS Whole House (HERS II) Rater. The consultant preparing the \"as-built\" energy model shall be responsible for verifying that all the energy efficiency measures have been met, including verification of installation certificates (CF-6R forms) and field verification certificates (CF-4R forms) for Low-rise and required acceptance testing forms for High-rise","N/A","Tier 2:  A HERS II rater, 3 years experience in MF buildings, GPR EH MF Rater, CEPE (res or non res)"]
[null,null,null,null,"Recommended questions for building owner to ask auditor:\n1.  How many buildings have you audited?\n2.  How many buildings like mine?\n3.  What are typical savings that you find/predict?\n4.  How much of the recommended work is typically acted on?\n5.  Can I see three sample reports from your previous jobs?\n6.  Can I have three references?"]
[null,"Third-Party Verification ","HERS Whole House (HERS II) Rater","N/A"]
[null,"Commissioning and Retro Commissioning (required for some HR measures; good practice for some others)","Commissioning - Meet requirements of BIG or Cal Green (*see below)\nhttp://www.documents.dgs.ca.gov/bsc/CALGreen/Non-Res-Comm-Guide-10-10.pdf, OR                                                                                                                                   Person or Firm doing the commissioning must be on the approved list with the California Commissioning Collaborative <http://www.cacx.org/resources/selecting.html>   The Cx agent does not have to be an independent third party.","Commissioning or Retro Commissioning Certification from one of the following certifying bodies:  Association of Energy Engineers, AABC Commissioning Group, ASHRAE, National Environmental Balancing Bureau, Testing Adjusting and Balancing Bureau or University of Wisconsin-Madison","See California Commissioning Collaborative \"How to Select a Cx Provider\"\nhttp://www.cacx.org/resources/selecting.html"]
[null,"Combustion appliance safety","BPI Building Analyst  or HERS Building Performance Contractor","N/A","N/A"]
[null,"Feasibility of renewable energy installation","CSI Approved Contractor (valid A, B, C-10, or C-46 license)","N/A","N/A"]
[null,"Renewable energy inspection/verification","HERS Rater with PV qualification from HERS Provider","N/A","N/A"]
[null,"Operations and maintenance","BPI Multifamily Building Operator or NAHMA Green Building Operator","N/A","N/A"]
[null,"CUAC Analysis"," California Association of Building Energy Consultants (CABEC) 2013 Certified Energy Analyst (2013 CEA)","N/A","N/A"]
[null,"Green Point Rating","Build It Green Certified Multifamily Green Point Rater","N/A","N/A"]
[null,"CalGreen Compliance","HERS Whole House (HERS II) Rater, Green Point Rater for Existing Home Multifamily, or LEED for Homes Green Rater","N/A","N/A"]
[]
[null,null,null,"Commissioning Qualifications from CalGreen"]
[null,null,null,"Selecting Trained Personnel for (Commissioning)"]
[null,null,null,"This code requires that “Commissioning shall be performed in accordance with this section by"]
[null,null,null,"trained personnel with experience on projects of comparable size and complexity.” The trained"]
[null,null,null,"personnel manage and facilitate the commissioning process. The trained personnel develop and"]
[null,null,null,"implement the commissioning tasks and documentation identified in sections 5.410.2.1 through"]
[null,null,null,"5.410.2.7. Trained personnel may include appropriate members of owner staff, contractor and"]
[null,null,null,"design team as well as independent commissioning professionals."]
[null,null,null,"It is essential that there is a single person designated to lead and manage the commissioning"]
[null,null,null,"activities. In practice, this individual has been referenced by various identifiers such as"]
[null,null,null,"commissioning authority, agent, provider, coordinator, lead, etc. In this guide the term"]
[null,null,null,"“commissioning coordinator” is used."]
[null,null,null,"The designated commissioning coordinator may be an independent third-party commissioning"]
[null,null,null,"professional, a project design team member (e.g. engineer or architect), an owner’s engineer or"]
[null,null,null,"facility staff, contractor or specialty sub-contractor. Methods of evaluating the designated"]
[null,null,null,"commissioning coordinator and trained personnel include review of the following:"]
[null,null,null,"1. Technical knowledge"]
[null,null,null,"2. Relevant experience"]
[null,null,null,"3. Potential conflict of interest concerns"]
[null,null,null,"4. Professional certifications and training"]
[null,null,null,"5. Communication and organizational skills"]
[null,null,null,"6. Reference and sample work products"]
[null,null,null,"Selection of “trained”, qualified personnel is required by this Code. In order to meet this"]
[null,null,null,"requirement, the commissioning provider should be evaluated via the methods discussed above."]
[null,null,null,"In addition, various organizations have training and certification programs that may be a source"]
[null,null,null,"for identification of qualified commissioning providers."]
[null,null,null,"For information about enforcement and compliance of each commissioning element see sections"]
[null,null,null,"5.410.2.1 through 5.410.2.7."]

{"sheet":"NC Verification Quals","index":9,"n_rows":13,"n_cols":4,"rows_kept":13,"cut":false,"hidden":false,"merged":[[3,1,4,1],[5,1,12,1]]}
[]
[]
[null,"Applicability","Task","Minimum Qualification"]
[null,"Required for all Multifamily Projects","Energy Modeling","California Association of Building Energy Consultants (CABEC) 2013 Certified Energy Analyst (CEA) (Nonres CEA for high-rise MF and Res CEA for low-rise MF). The consultant preparing the \"as-built\" energy model shall be responsible for verifying that all the energy efficiency measures have been met, including verification of installation certificates (CF-6R forms) and field verification certificates (CF-4R forms) for Low-rise and required acceptance testing forms for High-rise"]
[null,null,"Verification","HERS Whole House (HERS II) Rater"]
[null,"Required depending on scope","HVAC system efficiency and balancing (including duct testing)","California Field Verification and Diagnostic Testing Rater (one level of HERS Rater)"]
[null,null,"Central domestic water heating and distribution system efficiency","C-36 plumbing or C-4 boiler contractor license for renovation recommendations and all installation, and HERS Rater for verification"]
[null,null,"Commissioning (required for some HR measures; good practice for many others)","Trained Contractor, Commissioning Agent accredited through CEC approved program."]
[null,null,"Water, IAQ and resources measures","GreenPoint Rated Multifamily Rater "]
[null,null,"Combustion appliance safety","BPI Analyst"]
[null,null,"Renewable energy installation","CSI Approved Contractor (C-46 Solar Contractor license)"]
[null,null,"Renewable energy inspection/verification","HERS Rater with PV qualification from HERS Provider"]
[null,null,"Operations and maintenance","BPI Multifamily Building Operator or NAHMA Green Building Operator"]